Workbook

Sheet acc
A1: شجرة الحسابات | H1: =SUBTOTAL(9,H3:H10000) ->  | P1: =COLUMN() -> 16 | R1: اول المدة | T1: الحركات | V1: الرصيد
A2: م | B2: لا | C2: اسم الحساب | E2: البطاقة الضريبية | F2: التليفون | G2: المسئول | H2: الرصيد | I2: التصنيف | J2: كود حساب اخر | K2: الرصيد بالعملة | L2: صافي الرصيد | M2: التوجيه | N2: حجم الائتمان | O2: فترة الائتمان | P2: group | Q2: التعامل | R2: مدين | S2: دائن | T2: مدين | U2: دائن | V2: مدين | W2: دائن
A3: 1 | B3: 1 | C3: الأصول الثابتة | H3: =SUMIF([2]Accmove!B:B,acc!B3,[2]Accmove!I:I) ->  | I3: أصول ثابتة
A4: 2 | B4: 2 | H4: =SUMIF([2]Accmove!B:B,acc!B4,[2]Accmove!I:I) -> 
A5: 3 | B5: 3 | H5: =SUMIF([2]Accmove!B:B,acc!B5,[2]Accmove!I:I) -> 
A6: 4 | B6: 4 | H6: =SUMIF([2]Accmove!B:B,acc!B6,[2]Accmove!I:I) -> 
A7: 5 | B7: 5 | H7: =SUMIF([2]Accmove!B:B,acc!B7,[2]Accmove!I:I) -> 
A8: 6 | B8: 6 | H8: =SUMIF([2]Accmove!B:B,acc!B8,[2]Accmove!I:I) -> 
A9: 7 | B9: 7 | H9: =SUMIF([2]Accmove!B:B,acc!B9,[2]Accmove!I:I) -> 
A10: 8 | B10: 8 | H10: =SUMIF([2]Accmove!B:B,acc!B10,[2]Accmove!I:I) -> 
A11: 9 | B11: 9 | H11: =SUMIF([2]Accmove!B:B,acc!B11,[2]Accmove!I:I) ->  | I11: صندوق وبنوك
A12: 10 | B12: 10 | C12: الصندوق والبنوك | H12: =SUMIF([2]Accmove!B:B,acc!B12,[2]Accmove!I:I) -> 
A13: 11 | B13: 11 | C13: الصندوق | H13: =SUMIF([2]Accmove!B:B,acc!B13,[2]Accmove!I:I) -> 
A14: 12 | B14: 12 | C14: حساب بنك qnb | H14: =SUMIF([2]Accmove!B:B,acc!B14,[2]Accmove!I:I) ->  | I14: البنك
A15: 13 | B15: 13 | C15: خزنه الحاج هانى | H15: =SUMIF([2]Accmove!B:B,acc!B15,[2]Accmove!I:I) ->  | I15: جاري هاني
A16: 14 | B16: 14 | H16: =SUMIF([2]Accmove!B:B,acc!B16,[2]Accmove!I:I) -> 
A17: 15 | B17: 15 | H17: =SUMIF([2]Accmove!B:B,acc!B17,[2]Accmove!I:I) -> 
A18: 16 | B18: 16 | H18: =SUMIF([2]Accmove!B:B,acc!B18,[2]Accmove!I:I) -> 
A19: 17 | B19: 17 | H19: =SUMIF([2]Accmove!B:B,acc!B19,[2]Accmove!I:I) -> 
A20: 18 | B20: 18 | H20: =SUMIF([2]Accmove!B:B,acc!B20,[2]Accmove!I:I) -> 
A21: 19 | B21: 19 | H21: =SUMIF([2]Accmove!B:B,acc!B21,[2]Accmove!I:I) -> 
A22: 20 | B22: 20 | C22: العملاء | H22: =SUMIF([2]Accmove!B:B,acc!B22,[2]Accmove!I:I) -> 
A23: 21 | B23: 21 | C23: اشرف عبد السلام | H23: =SUMIF([2]Accmove!B:B,acc!B23,[2]Accmove!I:I) ->  | I23: عميل
A24: 22 | B24: 22 | C24: شركة العربي | H24: =SUMIF([2]Accmove!B:B,acc!B24,[2]Accmove!I:I) ->  | I24: عميل
A25: 23 | B25: 23 | C25: حاتم الإسماعيلية | H25: =SUMIF([2]Accmove!B:B,acc!B25,[2]Accmove!I:I) ->  | I25: عميل
A26: 24 | B26: 24 | C26: الجودة للطلاء | H26: =SUMIF([2]Accmove!B:B,acc!B26,[2]Accmove!I:I) ->  | I26: عميل
A27: 25 | B27: 25 | C27: عماد نيو باك | H27: =SUMIF([2]Accmove!B:B,acc!B27,[2]Accmove!I:I) ->  | I27: عميل
A28: 26 | B28: 26 | C28: شركة السلام | H28: =SUMIF([2]Accmove!B:B,acc!B28,[2]Accmove!I:I) ->  | I28: عميل
A29: 27 | B29: 27 | C29: اشرف هلال | H29: =SUMIF([2]Accmove!B:B,acc!B29,[2]Accmove!I:I) ->  | I29: عميل
A30: 28 | B30: 28 | C30: فارس الإسكندرية | H30: =SUMIF([2]Accmove!B:B,acc!B30,[2]Accmove!I:I) ->  | I30: عميل
A31: 29 | B31: 29 | C31: الفا لايت | H31: =SUMIF([2]Accmove!B:B,acc!B31,[2]Accmove!I:I) ->  | I31: عميل
A32: 30 | B32: 30 | C32: جمصة | H32: =SUMIF([2]Accmove!B:B,acc!B32,[2]Accmove!I:I) ->  | I32: عميل
A33: 31 | B33: 31 | C33: شركة كارمن | H33: =SUMIF([2]Accmove!B:B,acc!B33,[2]Accmove!I:I) ->  | I33: عميل
A34: 32 | B34: 32 | C34: محمد المحلة | H34: =SUMIF([2]Accmove!B:B,acc!B34,[2]Accmove!I:I) ->  | I34: عميل
A35: 33 | B35: 33 | C35: علي فداوي | H35: =SUMIF([2]Accmove!B:B,acc!B35,[2]Accmove!I:I) ->  | I35: عميل
A36: 34 | B36: 34 | C36: الاء | H36: =SUMIF([2]Accmove!B:B,acc!B36,[2]Accmove!I:I) ->  | I36: عميل
A37: 35 | B37: 35 | C37: شركة الشفاء | H37: =SUMIF([2]Accmove!B:B,acc!B37,[2]Accmove!I:I) ->  | I37: عميل
A38: 36 | B38: 36 | C38: سيموندس | H38: =SUMIF([2]Accmove!B:B,acc!B38,[2]Accmove!I:I) ->  | I38: عميل
A39: 37 | B39: 37 | C39: محمد دسوقي | H39: =SUMIF([2]Accmove!B:B,acc!B39,[2]Accmove!I:I) ->  | I39: عميل
A40: 38 | B40: 38 | C40: رضا المنصورة | H40: =SUMIF([2]Accmove!B:B,acc!B40,[2]Accmove!I:I) ->  | I40: عميل
A41: 39 | B41: 39 | C41: وائل الإسماعيلية | H41: =SUMIF([2]Accmove!B:B,acc!B41,[2]Accmove!I:I) ->  | I41: عميل
A42: 40 | B42: 40 | C42: عبد العليم | H42: =SUMIF([2]Accmove!B:B,acc!B42,[2]Accmove!I:I) ->  | I42: عميل
A43: 41 | B43: 41 | C43: ماجد عسل | H43: =SUMIF([2]Accmove!B:B,acc!B43,[2]Accmove!I:I) ->  | I43: عميل
A44: 42 | B44: 42 | C44: حياة اسكندرية | H44: =SUMIF([2]Accmove!B:B,acc!B44,[2]Accmove!I:I) ->  | I44: عميل
A45: 43 | B45: 43 | C45: بيشوي | H45: =SUMIF([2]Accmove!B:B,acc!B45,[2]Accmove!I:I) ->  | I45: عميل
A46: 44 | B46: 44 | C46: هليل | H46: =SUMIF([2]Accmove!B:B,acc!B46,[2]Accmove!I:I) ->  | I46: عميل
A47: 45 | B47: 45 | C47: عفت المنصورة | H47: =SUMIF([2]Accmove!B:B,acc!B47,[2]Accmove!I:I) ->  | I47: عميل
A48: 46 | B48: 46 | C48: بدر الخوانكي | H48: =SUMIF([2]Accmove!B:B,acc!B48,[2]Accmove!I:I) ->  | I48: عميل
A49: 47 | B49: 47 | C49: علي يونس | H49: =SUMIF([2]Accmove!B:B,acc!B49,[2]Accmove!I:I) ->  | I49: عميل
A50: 48 | B50: 48 | C50: علاء البعج | H50: =SUMIF([2]Accmove!B:B,acc!B50,[2]Accmove!I:I) ->  | I50: عميل
A51: 49 | B51: 49 | C51: محمد جمال بدر | H51: =SUMIF([2]Accmove!B:B,acc!B51,[2]Accmove!I:I) ->  | I51: عميل
A52: 50 | B52: 50 | C52: إسماعيل ماسترباك | H52: =SUMIF([2]Accmove!B:B,acc!B52,[2]Accmove!I:I) ->  | I52: عميل
A53: 51 | B53: 51 | C53: سعد أبو النمرس | H53: =SUMIF([2]Accmove!B:B,acc!B53,[2]Accmove!I:I) ->  | I53: عميل
A54: 52 | B54: 52 | C54: رامون | H54: =SUMIF([2]Accmove!B:B,acc!B54,[2]Accmove!I:I) ->  | I54: عميل
A55: 53 | B55: 53 | C55: أولاد مخلوف | H55: =SUMIF([2]Accmove!B:B,acc!B55,[2]Accmove!I:I) ->  | I55: عميل
A56: 54 | B56: 54 | C56: محمد السوري | H56: =SUMIF([2]Accmove!B:B,acc!B56,[2]Accmove!I:I) ->  | I56: عميل
A57: 55 | B57: 55 | C57: وليد شعبان | H57: =SUMIF([2]Accmove!B:B,acc!B57,[2]Accmove!I:I) ->  | I57: عميل
A58: 56 | B58: 56 | C58: محمد عادل | H58: =SUMIF([2]Accmove!B:B,acc!B58,[2]Accmove!I:I) ->  | I58: عميل
A59: 57 | B59: 57 | C59: خالد يوسف | H59: =SUMIF([2]Accmove!B:B,acc!B59,[2]Accmove!I:I) ->  | I59: عميل
A60: 58 | B60: 58 | C60: سعيد هاي بلاست | H60: =SUMIF([2]Accmove!B:B,acc!B60,[2]Accmove!I:I) ->  | I60: عميل
A61: 59 | B61: 59 | C61: امير بشرى | H61: =SUMIF([2]Accmove!B:B,acc!B61,[2]Accmove!I:I) ->  | I61: عميل
A62: 60 | B62: 60 | C62: اشرف التجمع | H62: =SUMIF([2]Accmove!B:B,acc!B62,[2]Accmove!I:I) ->  | I62: عميل
A63: 61 | B63: 61 | C63: محمد يونس | H63: =SUMIF([2]Accmove!B:B,acc!B63,[2]Accmove!I:I) ->  | I63: عميل
A64: 62 | B64: 62 | C64: المستقبل | H64: =SUMIF([2]Accmove!B:B,acc!B64,[2]Accmove!I:I) ->  | I64: عميل
A65: 63 | B65: 63 | C65: احمد محسن | H65: =SUMIF([2]Accmove!B:B,acc!B65,[2]Accmove!I:I) ->  | I65: عميل
A66: 64 | B66: 64 | C66: وليد لطفي | H66: =SUMIF([2]Accmove!B:B,acc!B66,[2]Accmove!I:I) ->  | I66: عميل
A67: 65 | B67: 65 | C67: إبراهيم سيلوتيب | H67: =SUMIF([2]Accmove!B:B,acc!B67,[2]Accmove!I:I) ->  | I67: عميل
A68: 66 | B68: 66 | C68: هالة | H68: =SUMIF([2]Accmove!B:B,acc!B68,[2]Accmove!I:I) ->  | I68: عميل
A69: 67 | B69: 67 | C69: محمد سعد | H69: =SUMIF([2]Accmove!B:B,acc!B69,[2]Accmove!I:I) ->  | I69: عميل
A70: 68 | B70: 68 | C70: عادل فداوي | H70: =SUMIF([2]Accmove!B:B,acc!B70,[2]Accmove!I:I) ->  | I70: عميل
A71: 69 | B71: 69 | C71: محمود فلتر | H71: =SUMIF([2]Accmove!B:B,acc!B71,[2]Accmove!I:I) ->  | I71: عميل
A72: 70 | B72: 70 | C72: وواتر اكسبريس | H72: =SUMIF([2]Accmove!B:B,acc!B72,[2]Accmove!I:I) ->  | I72: عميل
A73: 71 | B73: 71 | C73: محمود القناطر | H73: =SUMIF([2]Accmove!B:B,acc!B73,[2]Accmove!I:I) ->  | I73: عميل
A74: 72 | B74: 72 | C74: رضا زغلول | H74: =SUMIF([2]Accmove!B:B,acc!B74,[2]Accmove!I:I) ->  | I74: عميل
A75: 73 | B75: 73 | C75: فطين | H75: =SUMIF([2]Accmove!B:B,acc!B75,[2]Accmove!I:I) ->  | I75: عميل
A76: 74 | B76: 74 | C76: عبد العزيز دحلب | H76: =SUMIF([2]Accmove!B:B,acc!B76,[2]Accmove!I:I) ->  | I76: عميل
A77: 75 | B77: 75 | C77: احمد شعبان | H77: =SUMIF([2]Accmove!B:B,acc!B77,[2]Accmove!I:I) ->  | I77: عميل
A78: 76 | B78: 76 | C78: خالد سيلوتيب | H78: =SUMIF([2]Accmove!B:B,acc!B78,[2]Accmove!I:I) ->  | I78: عميل
A79: 77 | B79: 77 | C79: عادل أبو عبية | H79: =SUMIF([2]Accmove!B:B,acc!B79,[2]Accmove!I:I) ->  | I79: عميل
A80: 78 | B80: 78 | C80: محمد الخوانكي | H80: =SUMIF([2]Accmove!B:B,acc!B80,[2]Accmove!I:I) ->  | I80: عميل
A81: 79 | B81: 79 | C81: سعيد تبارك | H81: =SUMIF([2]Accmove!B:B,acc!B81,[2]Accmove!I:I) ->  | I81: عميل
A82: 80 | B82: 80 | C82: محمود الخوانكي | H82: =SUMIF([2]Accmove!B:B,acc!B82,[2]Accmove!I:I) ->  | I82: عميل
A83: 81 | B83: 81 | C83: رضا جورج | H83: =SUMIF([2]Accmove!B:B,acc!B83,[2]Accmove!I:I) ->  | I83: عميل
A84: 82 | B84: 82 | C84: فارما بدر | H84: =SUMIF([2]Accmove!B:B,acc!B84,[2]Accmove!I:I) ->  | I84: عميل
A85: 83 | B85: 83 | C85: ساندرا | H85: =SUMIF([2]Accmove!B:B,acc!B85,[2]Accmove!I:I) ->  | I85: عميل
A86: 84 | B86: 84 | C86: علام | H86: =SUMIF([2]Accmove!B:B,acc!B86,[2]Accmove!I:I) ->  | I86: عميل
A87: 85 | B87: 85 | C87: باسم سعيد | H87: =SUMIF([2]Accmove!B:B,acc!B87,[2]Accmove!I:I) ->  | I87: عميل
A88: 86 | B88: 86 | C88: علاء رشاد | H88: =SUMIF([2]Accmove!B:B,acc!B88,[2]Accmove!I:I) ->  | I88: عميل
A89: 87 | B89: 87 | C89: جسن بسوس | H89: =SUMIF([2]Accmove!B:B,acc!B89,[2]Accmove!I:I) ->  | I89: عميل
A90: 88 | B90: 88 | C90: حسام الفجالة | H90: =SUMIF([2]Accmove!B:B,acc!B90,[2]Accmove!I:I) ->  | I90: عميل
A91: 89 | B91: 89 | C91: حسن الشريف | H91: =SUMIF([2]Accmove!B:B,acc!B91,[2]Accmove!I:I) ->  | I91: عميل
A92: 90 | B92: 90 | C92: عمرو سيلوتيب | H92: =SUMIF([2]Accmove!B:B,acc!B92,[2]Accmove!I:I) ->  | I92: عميل
A93: 91 | B93: 91 | C93: خالد فايد | H93: =SUMIF([2]Accmove!B:B,acc!B93,[2]Accmove!I:I) ->  | I93: عميل
A94: 92 | B94: 92 | C94: هاني الفهد | H94: =SUMIF([2]Accmove!B:B,acc!B94,[2]Accmove!I:I) ->  | I94: عميل
A95: 93 | B95: 93 | C95: محمود كمال | H95: =SUMIF([2]Accmove!B:B,acc!B95,[2]Accmove!I:I) ->  | I95: عميل
A96: 94 | B96: 94 | C96: عماد المعادي | H96: =SUMIF([2]Accmove!B:B,acc!B96,[2]Accmove!I:I) ->  | I96: عميل
A97: 95 | B97: 95 | C97: أبو العلا | H97: =SUMIF([2]Accmove!B:B,acc!B97,[2]Accmove!I:I) ->  | I97: عميل
A98: 96 | B98: 96 | C98: عصام تبارك | H98: =SUMIF([2]Accmove!B:B,acc!B98,[2]Accmove!I:I) ->  | I98: عميل
A99: 97 | B99: 97 | C99: عبد المعطي سيلوتيب | H99: =SUMIF([2]Accmove!B:B,acc!B99,[2]Accmove!I:I) ->  | I99: عميل
A100: 98 | B100: 98 | C100: عبد العزيز المصرية | H100: =SUMIF([2]Accmove!B:B,acc!B100,[2]Accmove!I:I) ->  | I100: عميل
A101: 99 | B101: 99 | C101: الاتحاد العاشر | H101: =SUMIF([2]Accmove!B:B,acc!B101,[2]Accmove!I:I) ->  | I101: عميل
A102: 100 | B102: 100 | C102: شركة عمان | H102: =SUMIF([2]Accmove!B:B,acc!B102,[2]Accmove!I:I) ->  | I102: عميل
A103: 101 | B103: 101 | C103: حراز | H103: =SUMIF([2]Accmove!B:B,acc!B103,[2]Accmove!I:I) ->  | I103: عميل
A104: 102 | B104: 102 | C104: جيتكس | H104: =SUMIF([2]Accmove!B:B,acc!B104,[2]Accmove!I:I) ->  | I104: عميل
A105: 103 | B105: 103 | C105: اشرف الهواري | H105: =SUMIF([2]Accmove!B:B,acc!B105,[2]Accmove!I:I) ->  | I105: عميل
A106: 104 | B106: 104 | C106: ايمن منصورة | H106: =SUMIF([2]Accmove!B:B,acc!B106,[2]Accmove!I:I) ->  | I106: عميل
A107: 105 | B107: 105 | C107: شريف محمود | H107: =SUMIF([2]Accmove!B:B,acc!B107,[2]Accmove!I:I) ->  | I107: عميل
A108: 106 | B108: 106 | C108: العربية السعودية | H108: =SUMIF([2]Accmove!B:B,acc!B108,[2]Accmove!I:I) ->  | I108: عميل
A109: 107 | B109: 107 | C109: اكرم / العالميه | H109: =SUMIF([2]Accmove!B:B,acc!B109,[2]Accmove!I:I) ->  | I109: عميل
A110: 108 | B110: 108 | C110: شركه الصفا | H110: =SUMIF([2]Accmove!B:B,acc!B110,[2]Accmove!I:I) ->  | I110: عميل
A111: 109 | B111: 109 | C111: عرب الخلوه | H111: =SUMIF([2]Accmove!B:B,acc!B111,[2]Accmove!I:I) ->  | I111: عميل
A112: 110 | B112: 110 | C112: شركه العاصم | H112: =SUMIF([2]Accmove!B:B,acc!B112,[2]Accmove!I:I) ->  | I112: عميل
A113: 111 | B113: 111 | C113: حرير | H113: =SUMIF([2]Accmove!B:B,acc!B113,[2]Accmove!I:I) ->  | I113: عميل
A114: 112 | B114: 112 | C114: ماستر باك | H114: =SUMIF([2]Accmove!B:B,acc!B114,[2]Accmove!I:I) ->  | I114: عميل
A115: 113 | B115: 113 | C115: شركة تستي مور | H115: =SUMIF([2]Accmove!B:B,acc!B115,[2]Accmove!I:I) ->  | I115: عميل
A116: 114 | B116: 114 | C116: وليد البحيره | H116: =SUMIF([2]Accmove!B:B,acc!B116,[2]Accmove!I:I) ->  | I116: عميل
A117: 115 | B117: 115 | C117: عرب الخلوه جديد | H117: =SUMIF([2]Accmove!B:B,acc!B117,[2]Accmove!I:I) ->  | I117: عميل
A118: 116 | B118: 116 | C118: شركه لورد | H118: =SUMIF([2]Accmove!B:B,acc!B118,[2]Accmove!I:I) ->  | I118: عميل
A119: 117 | B119: 117 | C119: النقدي | H119: =SUMIF([2]Accmove!B:B,acc!B119,[2]Accmove!I:I) ->  | I119: عميل
A120: 118 | B120: 118 | C120: الشركه المصريه | H120: =SUMIF([2]Accmove!B:B,acc!B120,[2]Accmove!I:I) ->  | I120: عميل
A121: 119 | B121: 119 | C121: وائل حماد | H121: =SUMIF([2]Accmove!B:B,acc!B121,[2]Accmove!I:I) ->  | I121: عميل
A122: 120 | B122: 120 | C122: محمودالهلالي | H122: =SUMIF([2]Accmove!B:B,acc!B122,[2]Accmove!I:I) ->  | I122: عميل
A123: 121 | B123: 121 | C123: محمد الكردي | H123: =SUMIF([2]Accmove!B:B,acc!B123,[2]Accmove!I:I) ->  | I123: عميل
A124: 122 | B124: 122 | C124: المتحدة الزقازيق | H124: =SUMIF([2]Accmove!B:B,acc!B124,[2]Accmove!I:I) ->  | I124: عميل
A125: 123 | B125: 123 | C125: عملاء نقدي | H125: =SUMIF([2]Accmove!B:B,acc!B125,[2]Accmove!I:I) ->  | I125: عميل
A126: 124 | B126: 124 | C126: اكوا تراكس | H126: =SUMIF([2]Accmove!B:B,acc!B126,[2]Accmove!I:I) ->  | I126: عميل
A127: 125 | B127: 125 | C127: الربيع | H127: =SUMIF([2]Accmove!B:B,acc!B127,[2]Accmove!I:I) ->  | I127: عميل
A128: 126 | B128: 126 | C128: الهنا باك | H128: =SUMIF([2]Accmove!B:B,acc!B128,[2]Accmove!I:I) ->  | I128: عميل
A129: 127 | B129: 127 | C129: وائل الاخوه للكرتون | H129: =SUMIF([2]Accmove!B:B,acc!B129,[2]Accmove!I:I) ->  | I129: عميل
A130: 128 | B130: 128 | C130: وواتر اكسبريس م/منصور | H130: =SUMIF([2]Accmove!B:B,acc!B130,[2]Accmove!I:I) ->  | I130: عميل
A131: 129 | B131: 129 | C131: هولى ستار ا/ مينا | H131: =SUMIF([2]Accmove!B:B,acc!B131,[2]Accmove!I:I) ->  | I131: عميل
A132: 130 | B132: 130 | C132: اكرم | H132: =SUMIF([2]Accmove!B:B,acc!B132,[2]Accmove!I:I) ->  | I132: عميل
A133: 131 | B133: 131 | C133: فرج القاهره | H133: =SUMIF([2]Accmove!B:B,acc!B133,[2]Accmove!I:I) ->  | I133: عميل
A134: 132 | B134: 132 | C134: حلمى | H134: =SUMIF([2]Accmove!B:B,acc!B134,[2]Accmove!I:I) ->  | I134: عميل
A135: 133 | B135: 133 | C135: وائل بولى تريد | H135: =SUMIF([2]Accmove!B:B,acc!B135,[2]Accmove!I:I) ->  | I135: عميل
A136: 134 | B136: 134 | C136: عبد الرؤوف دي ماس | H136: =SUMIF([2]Accmove!B:B,acc!B136,[2]Accmove!I:I) ->  | I136: عميل
A137: 135 | B137: 135 | C137: شركه جميله | H137: =SUMIF([2]Accmove!B:B,acc!B137,[2]Accmove!I:I) ->  | I137: عميل
A138: 136 | B138: 136 | C138: هيثم كور | H138: =SUMIF([2]Accmove!B:B,acc!B138,[2]Accmove!I:I) ->  | I138: موردين
A139: 137 | B139: 137 | C139: احمد درويش | H139: =SUMIF([2]Accmove!B:B,acc!B139,[2]Accmove!I:I) ->  | I139: عميل
A140: 138 | B140: 138 | C140: جى ام فورز | H140: =SUMIF([2]Accmove!B:B,acc!B140,[2]Accmove!I:I) ->  | I140: عميل
A141: 139 | B141: 139 | C141: محمود البنا | H141: =SUMIF([2]Accmove!B:B,acc!B141,[2]Accmove!I:I) ->  | I141: عميل
A142: 140 | B142: 140 | C142: يونيفارما | H142: =SUMIF([2]Accmove!B:B,acc!B142,[2]Accmove!I:I) ->  | I142: عميل
A143: 141 | B143: 141 | C143: ابراهيم زغلول | H143: =SUMIF([2]Accmove!B:B,acc!B143,[2]Accmove!I:I) ->  | I143: عميل
A144: 142 | B144: 142 | C144: محمود سعد | H144: =SUMIF([2]Accmove!B:B,acc!B144,[2]Accmove!I:I) ->  | I144: عميل
A145: 143 | B145: 143 | C145: فداوى | H145: =SUMIF([2]Accmove!B:B,acc!B145,[2]Accmove!I:I) ->  | I145: عميل
A146: 144 | B146: 144 | C146: محمد جبل الاصفر | H146: =SUMIF([2]Accmove!B:B,acc!B146,[2]Accmove!I:I) ->  | I146: عميل
A147: 145 | B147: 145 | C147: شركة الوليد اكتوبر | H147: =SUMIF([2]Accmove!B:B,acc!B147,[2]Accmove!I:I) ->  | I147: عميل
A148: 146 | B148: 146 | C148: سناء جمال غزال | H148: =SUMIF([2]Accmove!B:B,acc!B148,[2]Accmove!I:I) ->  | I148: عميل
A149: 147 | B149: 147 | C149: صبحى عواد | H149: =SUMIF([2]Accmove!B:B,acc!B149,[2]Accmove!I:I) ->  | I149: عميل
A150: 148 | B150: 148 | C150: محمد عبد الفتاح | H150: =SUMIF([2]Accmove!B:B,acc!B150,[2]Accmove!I:I) ->  | I150: عميل
A151: 149 | B151: 149 | C151: محمد الشاذلى شراء استرتش | H151: =SUMIF([2]Accmove!B:B,acc!B151,[2]Accmove!I:I) ->  | I151: عميل
A152: 150 | B152: 150 | C152: ايهاب جونسون | H152: =SUMIF([2]Accmove!B:B,acc!B152,[2]Accmove!I:I) ->  | I152: عميل
A153: 151 | B153: 151 | C153: المدينه النوره | H153: =SUMIF([2]Accmove!B:B,acc!B153,[2]Accmove!I:I) ->  | I153: عميل
A154: 152 | B154: 152 | C154: احمد عيسى | H154: =SUMIF([2]Accmove!B:B,acc!B154,[2]Accmove!I:I) ->  | I154: عميل
A155: 153 | B155: 153 | C155: خالد تبع فهيم | H155: =SUMIF([2]Accmove!B:B,acc!B155,[2]Accmove!I:I) ->  | I155: عميل
A156: 154 | B156: 154 | C156: شركة الندى | H156: =SUMIF([2]Accmove!B:B,acc!B156,[2]Accmove!I:I) ->  | I156: عميل
A157: 155 | B157: 155 | C157: محمود مجدى | H157: =SUMIF([2]Accmove!B:B,acc!B157,[2]Accmove!I:I) ->  | I157: عميل
A158: 156 | B158: 156 | H158: =SUMIF([2]Accmove!B:B,acc!B158,[2]Accmove!I:I) ->  | I158: عميل
A159: 157 | B159: 157 | C159: شركة فريش | H159: =SUMIF([2]Accmove!B:B,acc!B159,[2]Accmove!I:I) ->  | I159: عميل
A160: 158 | B160: 158 | C160: عبد الحكم | H160: =SUMIF([2]Accmove!B:B,acc!B160,[2]Accmove!I:I) ->  | I160: عميل
A161: 159 | B161: 159 | C161: احمد صابر هالك | H161: =SUMIF([2]Accmove!B:B,acc!B161,[2]Accmove!I:I) ->  | I161: عميل
A162: 160 | B162: 160 | C162: شركه السويدى | H162: =SUMIF([2]Accmove!B:B,acc!B162,[2]Accmove!I:I) ->  | I162: عميل
A163: 161 | B163: 161 | C163: طارق المحله | H163: =SUMIF([2]Accmove!B:B,acc!B163,[2]Accmove!I:I) ->  | I163: عميل
A164: 162 | B164: 162 | C164: محمود نصار قليوب | H164: =SUMIF([2]Accmove!B:B,acc!B164,[2]Accmove!I:I) ->  | I164: عميل
A165: 163 | B165: 163 | C165: السيد صابر صقر | H165: =SUMIF([2]Accmove!B:B,acc!B165,[2]Accmove!I:I) ->  | I165: عميل
A166: 164 | B166: 164 | C166: رفيق | H166: =SUMIF([2]Accmove!B:B,acc!B166,[2]Accmove!I:I) ->  | I166: عميل
A167: 165 | B167: 165 | C167: سامح الصعيدى | H167: =SUMIF([2]Accmove!B:B,acc!B167,[2]Accmove!I:I) ->  | I167: عميل
A168: 166 | B168: 166 | C168: كيرو باك مصر | H168: =SUMIF([2]Accmove!B:B,acc!B168,[2]Accmove!I:I) ->  | I168: عميل
A169: 167 | B169: 167 | C169: ياسر شركة العطور | H169: =SUMIF([2]Accmove!B:B,acc!B169,[2]Accmove!I:I) ->  | I169: عميل
A170: 168 | B170: 168 | C170: الاسلاميه استرتش | H170: =SUMIF([2]Accmove!B:B,acc!B170,[2]Accmove!I:I) ->  | I170: عميل
A171: 169 | B171: 169 | C171: ابو طالب | H171: =SUMIF([2]Accmove!B:B,acc!B171,[2]Accmove!I:I) ->  | I171: عميل
A172: 170 | B172: 170 | C172: شركة كلاس | H172: =SUMIF([2]Accmove!B:B,acc!B172,[2]Accmove!I:I) ->  | I172: عميل
A173: 171 | B173: 171 | C173: احمد الحوت | H173: =SUMIF([2]Accmove!B:B,acc!B173,[2]Accmove!I:I) ->  | I173: عميل
A174: 172 | B174: 172 | C174: الفا مصر للبويات | H174: =SUMIF([2]Accmove!B:B,acc!B174,[2]Accmove!I:I) ->  | I174: عميل
A175: 173 | B175: 173 | C175: اورينت تبع علاء رشاد | H175: =SUMIF([2]Accmove!B:B,acc!B175,[2]Accmove!I:I) ->  | I175: عميل
A176: 174 | B176: 174 | C176: بشوى الهرم | H176: =SUMIF([2]Accmove!B:B,acc!B176,[2]Accmove!I:I) ->  | I176: عميل
A177: 175 | B177: 175 | C177: محمود العتيق | H177: =SUMIF([2]Accmove!B:B,acc!B177,[2]Accmove!I:I) ->  | I177: عميل
A178: 176 | B178: 176 | C178: جمال عسكر اسكندريه | H178: =SUMIF([2]Accmove!B:B,acc!B178,[2]Accmove!I:I) ->  | I178: عميل
A179: 177 | B179: 177 | C179: مسلم سيلوتيب | H179: =SUMIF([2]Accmove!B:B,acc!B179,[2]Accmove!I:I) ->  | I179: عميل
A180: 178 | B180: 178 | C180: كايرو ثرى | H180: =SUMIF([2]Accmove!B:B,acc!B180,[2]Accmove!I:I) ->  | I180: عميل
A181: 179 | B181: 179 | C181: يحى عامر | H181: =SUMIF([2]Accmove!B:B,acc!B181,[2]Accmove!I:I) ->  | I181: عميل
A182: 180 | B182: 180 | C182: كريم هالك | H182: =SUMIF([2]Accmove!B:B,acc!B182,[2]Accmove!I:I) ->  | I182: عميل
A183: 181 | B183: 181 | C183: بشمهندس محمد حمام | H183: =SUMIF([2]Accmove!B:B,acc!B183,[2]Accmove!I:I) ->  | I183: عميل
A184: 182 | B184: 182 | C184: شركة اليسر | H184: =SUMIF([2]Accmove!B:B,acc!B184,[2]Accmove!I:I) ->  | I184: عميل
A185: 183 | B185: 183 | C185: معاذ | H185: =SUMIF([2]Accmove!B:B,acc!B185,[2]Accmove!I:I) ->  | I185: عميل
A186: 184 | B186: 184 | C186: احمد خالد | H186: =SUMIF([2]Accmove!B:B,acc!B186,[2]Accmove!I:I) ->  | I186: عميل
A187: 185 | B187: 185 | C187: الاء | H187: =SUMIF([2]Accmove!B:B,acc!B187,[2]Accmove!I:I) ->  | I187: عميل
A188: 186 | B188: 186 | C188: شركة اوليفيا | H188: =SUMIF([2]Accmove!B:B,acc!B188,[2]Accmove!I:I) ->  | I188: عميل
A189: 187 | B189: 187 | C189: صبرى سلوتيب | H189: =SUMIF([2]Accmove!B:B,acc!B189,[2]Accmove!I:I) ->  | I189: عميل
A190: 188 | B190: 188 | C190: اجرو ايجيبت | H190: =SUMIF([2]Accmove!B:B,acc!B190,[2]Accmove!I:I) ->  | I190: عميل
A191: 189 | B191: 189 | C191: شركة بابل | H191: =SUMIF([2]Accmove!B:B,acc!B191,[2]Accmove!I:I) ->  | I191: عميل
A192: 190 | B192: 190 | C192: شفيق البنا | H192: =SUMIF([2]Accmove!B:B,acc!B192,[2]Accmove!I:I) ->  | I192: عميل
A193: 191 | B193: 191 | C193: رافت فؤاد الزقازيق | H193: =SUMIF([2]Accmove!B:B,acc!B193,[2]Accmove!I:I) ->  | I193: عميل
A194: 192 | B194: 192 | C194: احمد الباز | H194: =SUMIF([2]Accmove!B:B,acc!B194,[2]Accmove!I:I) ->  | I194: عميل
A195: 193 | B195: 193 | C195: عماد عصام استرتش | H195: =SUMIF([2]Accmove!B:B,acc!B195,[2]Accmove!I:I) ->  | I195: عميل
A196: 194 | B196: 194 | C196: زين الصعيد | H196: =SUMIF([2]Accmove!B:B,acc!B196,[2]Accmove!I:I) ->  | I196: عميل
A197: 195 | B197: 195 | C197: كتالوجات سوريا | H197: =SUMIF([2]Accmove!B:B,acc!B197,[2]Accmove!I:I) ->  | I197: عميل
A198: 196 | B198: 196 | C198: احمد زغلول | H198: =SUMIF([2]Accmove!B:B,acc!B198,[2]Accmove!I:I) ->  | I198: عميل
A199: 197 | B199: 197 | C199: صبرى ابوطالب الفارس | H199: =SUMIF([2]Accmove!B:B,acc!B199,[2]Accmove!I:I) ->  | I199: عميل
A200: 198 | B200: 198 | C200: سعيد فرج | H200: =SUMIF([2]Accmove!B:B,acc!B200,[2]Accmove!I:I) ->  | I200: عميل
... 223 more rows

Sheet items
A1: قائمة الاصناف المخزنية
A2: م | B2: كود الصنف | C2: اسم الصنف | D2: كود المورد | E2: المورد | F2: م س شراء كيلو | G2: س بيع كيلو | H2: المواصفات | I2: المخزن | J2: الرصيد | K2: بالانتاج | L2: قائمة الاسعار02/15
A3: 1 | B3: ak-tv-0001 | C3: شاشة 32 بوصة | F3: 50
A4: =A3+1 -> 2 | B4: ak-tv-0002 | C4: شاشة 43 بوصة
A5: =A4+1 -> 3 | B5: ak-wa-0001 | C5: غسالة 10 كيلو
A6: 4 | B6: ak-rf-0001 | C6: ثلاجة مينى بار 4.5
A7: 5 | B7: ak-gc-0001 | C7: بوتجاز 60*80 (107)
A8: 6 | B8: ak-gc-0002 | C8: بوتجاز 60*80 نحاس (109)
A9: 7 | B9: ak-gc-0003 | C9: بوتجاز 60*80 بالمروحة (110)
A10: 8 | B10: ak-gc-0004 | C10: بوتجاز 60*90 نحاس (114)
A11: 9 | B11: ak-gc-0005 | C11: بوتجاز 60*90 بالمروحة (115)
A12: 10 | B12: ak-mw-0001 | C12: ميكروويف 20 لتر
A13: 11 | B13: ak-mw-0002 | C13: ميكروويف 25 لتر
A14: 12 | B14: ak-mw-0003 | C14: ميكروويف 30 لتر | F14: 120
A15: 13 | B15: ak-af-0001 | C15: قلاية 5.5 لتر عادة 100
A16: 14 | B16: ak-af-0002 | C16: قلاية 5.5 لتر ديجيتال 100
A17: 15 | B17: ak-af-0003 | C17: قلاية 5.5 لتر عادة 200
A18: 16 | B18: ak-af-0004 | C18: قلاية 5.5 لتر ديجيتال 200
A19: 17 | B19: ak-ir-0001 | C19: مكواة تيفال
A20: 18 | B20: ak-ir-0002 | C20: مكواة سيراميك
A21: 19 | B21: ak-yg-0001 | C21: ماكينة زبادى عادة
A22: 20 | B22: ak-kt-0001 | C22: غلاية 1505 بلاستيك
A23: 21 | B23: ak-kt-0002 | C23: غلاية 1100 زجاج
A24: 22 | B24: ak-ov-0001 | C24: فرن 45 لتر
A25: 23 | B25: ak-ov-0002 | C25: فرن 55 لتر
A26: 24 | B26: ak-ov-0003 | C26: فرن 70 لتر
A27: 25 | B27: ak-wd-0001 | C27: مبرد 3 حنفية حافظة
A28: 26 | B28: ak-wd-0002 | C28: مبرد 3 حنفية ثلاجة
A29: 27 | B29: ak-wd-0003 | C29: مبرد 2 حنفية زجاج
B30: ak-ov-0004 | C30: فرن 40 لتر واحد زرار
B31: ak-bl-0001 | C31: كيتشن تركي
B32: ak-bl-0002 | C32: خلاط 400
B33: ak-bl-0003 | C33: مضرب عاده 400
B34: ak-co-0001 | C34: بلاطة 1 عين تركي
B35: ak-co-0002 | C35: بلاطة 2 عين تركي
B36: ak-he-0001 | C36: دفاية 4 شمعة 2970
B37: ak-he-0002 | C37: دفاية 3 شمعة 2820
B38: ak-he-0003 | C38: دفاية 4 شمعة عادة
B39: ak-he-0004 | C39: دفاية 4 شمعة ريموت
B40: ak-he-0005 | C40: دفاية 4 شمعة وسط 2050
B41: ak-vc-0001 | C41: مكنسة بطة 2000 وات
B42: ak-vc-0002 | C42: مكنسة برميل تركي
B43: ak-bq-0001 | C43: شواية
B44: ak-ex-0001 | C44: شفاط 30سم شبكة
B45: ak-gc-0006 | C45: مسطح 3 عين استانلس
B46: ak-ch-0001 | C46: كويكي 2 سكينة 500
B47: ak-ch-0002 | C47: كبة 1 حوض 2 سكينة 100
B48: ak-ch-0003 | C48: كبة 2 حوض 2 سكينة 150
B49: ak-cf-0001 | C49: مروحة سقف 56" بوصة
B50: ak-fa-0001 | C50: مروحة حائط 18 بوصة عادة
B51: ak-fa-0002 | C51: مروحة حائط 18 بوصة ريموت
B52: ak-fa-0003 | C52: مروحة عمود 18 بوصة عادة
B53: ak-fa-0004 | C53: مروحة عمود 18 بوصة ريموت
B54: ak-fa-0005 | C54: مروحة حائط 20 بوصة عادة
B55: ak-fa-0006 | C55: مروحة عمود 20 بوصة عادة
B56: ak-fa-0007 | C56: مروحة حائط 18 عادة موزة
B57: ak-fa-0008 | C57: مروحة عمود 18 عادة موزة
B58: ak-fa-0009 | C58: مروحة كاريوكا 18 بوصة
B59: ak-kl-0001 | C59: صاعق ناموس بلاستيك 60 سم
B60: ak-cl-0001 | C60: كولمن 20 لتر
B61: ak-ac-0001 | C61: تكييف صحراوي 75 لتر

Sheet itemout
A1: 0 | B1: الصرف | J1: 0
A2: نوع الحركة | B2: صرف منتج تام | D2: الاذن اليدوي | J2: 0
A3: اذن رقم | B3: =IFERROR(IF(B2= "صرف منتج تام",[3]setup!D4,IF(B2= "صرف تام ض",[3]setup!D11,IF(B2= "مردودات مبيعات",[3]setup!D13,[3]setup!D3))),[3]setup!D3) -> 231434 | D3: التعامل | J3: 0
A4: التاريخ | B4: =TODAY() -> 2024-01-15 | J4: 0
A5: كود العميل | B5: 10 | H5: =SUM(H8:H8) -> 0 | J5: 0
A6: اسم العميل | B6: =IFERROR(VLOOKUP(B5,acc!B:C,2,FALSE),"") -> الصندوق والبنوك | E6: المندوب | J6: 1
A7: م | B7: كود الصنف | C7: اسم الصنف | D7: مواصفات | E7: الوحدة | F7: الكمية | G7: السعر | H7: القيمة | J7: 2
A8: 1 | B8: ak-tv-0001 | C8: =IFERROR(VLOOKUP($B8,items!$B:$I,2,FALSE),"") -> شاشة 32 بوصة | G8: =INDEX(price_list!$J$3:$J$1998,MATCH(1,INDEX(((price_list!$A$3:$A$1998<=$B$4)*(price_list!$E$3:$E$1998=B8)),0),0)) -> 48.5 | H8: =F8*G8 -> 0 | J8: 3
A9: 2 | C9: =IFERROR(VLOOKUP($B9,items!$B:$I,2,FALSE),"") ->  | H9: 0 | J9: 4
A10: 3 | C10: =IFERROR(VLOOKUP($B10,items!$B:$I,2,FALSE),"") ->  | H10: 0 | J10: 5
A11: 4 | C11: =IFERROR(VLOOKUP($B11,items!$B:$I,2,FALSE),"") ->  | H11: 0 | J11: 6
A12: 5 | C12: =IFERROR(VLOOKUP($B12,items!$B:$I,2,FALSE),"") ->  | H12: 0 | J12: 7
A13: 6 | C13: =IFERROR(VLOOKUP($B13,items!$B:$I,2,FALSE),"") ->  | H13: 0 | J13: 8
A14: 7 | C14: =IFERROR(VLOOKUP($B14,items!$B:$I,2,FALSE),"") ->  | H14: 0 | J14: 9
A15: 8 | C15: =IFERROR(VLOOKUP($B15,items!$B:$I,2,FALSE),"") ->  | H15: 0 | J15: 10
A16: 9 | C16: =IFERROR(VLOOKUP($B16,items!$B:$I,2,FALSE),"") ->  | H16: 0 | J16: 11
A17: 10 | C17: =IFERROR(VLOOKUP($B17,items!$B:$I,2,FALSE),"") ->  | H17: 0 | J17: 12
A18: 11 | C18: =IFERROR(VLOOKUP($B18,items!$B:$I,2,FALSE),"") ->  | H18: 0 | J18: 13
A19: 12 | C19: =IFERROR(VLOOKUP($B19,items!$B:$I,2,FALSE),"") ->  | H19: 0 | J19: 14
A20: 13 | C20: =IFERROR(VLOOKUP($B20,items!$B:$I,2,FALSE),"") ->  | H20: 0 | J20: 15
A21: 14 | C21: =IFERROR(VLOOKUP($B21,items!$B:$I,2,FALSE),"") ->  | H21: 0 | J21: 16
A22: 15 | C22: =IFERROR(VLOOKUP($B22,items!$B:$I,2,FALSE),"") ->  | H22: 0 | J22: 17
A23: 16 | C23: =IFERROR(VLOOKUP($B23,items!$B:$I,2,FALSE),"") ->  | H23: 0 | J23: 18
A24: 17 | C24: =IFERROR(VLOOKUP($B24,items!$B:$I,2,FALSE),"") ->  | H24: 0 | J24: 19
A25: 18 | C25: =IFERROR(VLOOKUP($B25,items!$B:$I,2,FALSE),"") ->  | H25: 0 | J25: 20
A26: 19 | C26: =IFERROR(VLOOKUP($B26,items!$B:$I,2,FALSE),"") ->  | H26: 0 | J26: 21
A27: 20 | C27: =IFERROR(VLOOKUP($B27,items!$B:$I,2,FALSE),"") ->  | H27: 0 | J27: 22
A28: 21 | C28: =IFERROR(VLOOKUP($B28,items!$B:$I,2,FALSE),"") ->  | H28: 0 | J28: 23
A29: 22 | C29: =IFERROR(VLOOKUP($B29,items!$B:$I,2,FALSE),"") ->  | H29: 0 | J29: 24
A30: 23 | C30: =IFERROR(VLOOKUP($B30,items!$B:$I,2,FALSE),"") ->  | H30: 0 | J30: 25
A31: 24 | C31: =IFERROR(VLOOKUP($B31,items!$B:$I,2,FALSE),"") ->  | H31: 0 | J31: 26
A32: 25 | C32: =IFERROR(VLOOKUP($B32,items!$B:$I,2,FALSE),"") ->  | H32: 0 | J32: 27
G33: الصافي قبل ض | H33: =SUM(H8:H32) -> 0 | J33: 28
G34: ض قيمة مضافة | H34: =IFERROR(IF(E$3<>"",H$33*0.14,0),0) -> 0 | J34: 29
G35: ض الخصم | H35: =IFERROR(IF(E$3<>"",H$33*0.01,0),0) -> 0 | J35: 30
G36: الصافي | H36: =H33+H34-H35 -> 0 | J36: 31
J37: 32

Sheet 10-1-2024
A1: price list : 10-1-2024 | G1: =TODAY() -> 2024-01-15
J3: تاجر بخصم 5% اجل | L3: تاجر بخصم 7% نقدي | N3: ضريبي بخصم 5% اجل | P3: ضريبي بخصم 7%نقدي | R3: K.A
A4: factory | B4: supp | C4: group | D4: item code | E4: items | F4: items | G4: model | H4: base price | I4: قطعي بدون خصم | J4: سعر البيع | K4: الفاتورة | L4: سعر البيع | M4: الفاتورة | N4: سعر البيع | O4: الفاتورة بدون ض | P4: سعر البيع | Q4: الفاتورة بدون ض | R4: سعر البيع | S4: الفاتورة بدون ض
A5: AKAI Exp | B5: china | C5: t.v | D5: ak-tv-0001 | E5: t.v 32" | F5: شاشة 32 بوصة | H5: 50 | I5: =H5*0.97 -> 48.5 | J5: =H5*1.14 -> 57 | K5: =H5*1.09 -> 54.5 | L5: =H5*1.14 -> 57 | M5: H6*1.07 | N5: =I5*1.07 -> 51.895 | O5: =I5*(1+0.05+0.09+0.1) -> 60.14 | P5: =I5*(1+0.05) -> 50.925 | Q5: =I5*(1+0.05+0.09+0.1) -> 60.14 | R5: =I5*(1+0.03) -> 49.955 | S5: =I5*(1+0.05+0.14+0.1) -> 62.565 | T5: =I5*(1+0.03+0.05) -> 52.38
A6: AKAI Exp | B6: china | C6: t.v | D6: ak-tv-0002 | E6: t.v 43" | F6: شاشة 43 بوصة | H6: 60 | I6: 58.2 | J6: 68.4 | K6: 65.4 | L6: 68.4 | M6: H6*1.07 | N6: 62.274 | O6: 72.168 | P6: 61.11 | Q6: 72.168 | R6: 59.946 | S6: 75.078 | T6: 62.856
A7: B.ONE | B7: china | C7: washing | D7: ak-wa-0001 | E7: washing machin 10 kg | F7: غسالة 10 كيلو | H7: 70 | I7: 67.9 | J7: 79.8 | K7: 76.3 | L7: 79.8 | M7: H6*1.07 | N7: 72.653 | O7: 84.196 | P7: 71.295 | Q7: 84.196 | R7: 69.937 | S7: 87.591 | T7: 73.332
A8: AKAI Exp | B8: china | C8: Refrigerator | D8: ak-rf-0001 | E8: Refrigerator 4.5 | F8: ثلاجة مينى بار 4.5 | H8: 80 | I8: 77.6 | J8: 91.2 | K8: 87.2 | L8: 91.2 | M8: H6*1.07 | N8: 83.032 | O8: 96.224 | P8: 81.48 | Q8: 96.224 | R8: 79.928 | S8: 100.104 | T8: 83.808
A9: AKAI Exp | B9: china | C9: gas cooker | D9: ak-gc-0001 | E9: gas cooker 60*80 (107) | F9: بوتجاز 60*80 (107) | H9: 90 | I9: 87.3 | J9: 102.6 | K9: 98.1 | L9: 102.6 | M9: H6*1.07 | N9: 93.411 | O9: 108.252 | P9: 91.665 | Q9: 108.252 | R9: 89.919 | S9: 112.617 | T9: 94.284
A10: AKAI Exp | B10: china | C10: gas cooker | D10: ak-gc-0002 | E10: gas cooker 60*80 co (109) | F10: بوتجاز 60*80 نحاس (109) | H10: 100 | I10: 97 | J10: 114 | K10: 109 | L10: 114 | M10: H6*1.07 | N10: 103.79 | O10: 120.28 | P10: 101.85 | Q10: 120.28 | R10: 99.91 | S10: 125.13 | T10: 104.76
A11: AKAI Exp | B11: china | C11: gas cooker | D11: ak-gc-0003 | E11: gas cooker 60*80 & fan (110) | F11: بوتجاز 60*80 بالمروحة (110) | H11: 110 | I11: 106.7 | J11: 125.4 | K11: 119.9 | L11: 125.4 | M11: H6*1.07 | N11: 114.169 | O11: 132.308 | P11: 112.035 | Q11: 132.308 | R11: 109.901 | S11: 137.643 | T11: 115.236
A12: AKAI Exp | B12: china | C12: gas cooker | D12: ak-gc-0004 | E12: gas cooker 60*80 co (114) | F12: بوتجاز 60*90 نحاس (114) | H12: 120 | I12: 116.4 | J12: 136.8 | K12: 130.8 | L12: 136.8 | M12: H6*1.07 | N12: 124.548 | O12: 144.336 | P12: 122.22 | Q12: 144.336 | R12: 119.892 | S12: 150.156 | T12: 125.712
A13: AKAI Exp | B13: china | C13: gas cooker | D13: ak-gc-0005 | E13: gas cooker 60*80 & fan (115) | F13: بوتجاز 60*90 بالمروحة (115) | H13: 130 | I13: 126.1 | J13: 148.2 | K13: 141.7 | L13: 148.2 | M13: H6*1.07 | N13: 134.927 | O13: 156.364 | P13: 132.405 | Q13: 156.364 | R13: 129.883 | S13: 162.669 | T13: 136.188
A14: Akai ind | B14: china | C14: micro wave | D14: ak-mw-0001 | E14: micro wave 20 LT | F14: ميكروويف 20 لتر | H14: 140 | I14: 135.8 | J14: 159.6 | K14: 152.6 | L14: 159.6 | M14: H6*1.07 | N14: 145.306 | O14: 168.392 | P14: 142.59 | Q14: 168.392 | R14: 139.874 | S14: 175.182 | T14: 146.664
A15: Akai ind | B15: china | C15: micro wave | D15: ak-mw-0002 | E15: micro wave 25 LT | F15: ميكروويف 25 لتر | H15: 150 | I15: 145.5 | J15: 171 | K15: 163.5 | L15: 171 | M15: H6*1.07 | N15: 155.685 | O15: 180.42 | P15: 152.775 | Q15: 180.42 | R15: 149.865 | S15: 187.695 | T15: 157.14
A16: Akai ind | B16: china | C16: micro wave | D16: ak-mw-0003 | E16: micro wave 30 LT | F16: ميكروويف 30 لتر | H16: 160 | I16: 155.2 | J16: 182.4 | K16: 174.4 | L16: 182.4 | M16: H6*1.07 | N16: 166.064 | O16: 192.448 | P16: 162.96 | Q16: 192.448 | R16: 159.856 | S16: 200.208 | T16: 167.616
A17: B.ONE | B17: china | C17: air fryer | D17: ak-af-0001 | E17: air fryer 5.5 n (100) | F17: قلاية 5.5 لتر عادة 100 | H17: 170 | I17: 164.9 | J17: 193.8 | K17: 185.3 | L17: 193.8 | M17: H6*1.07 | N17: 176.443 | O17: 204.476 | P17: 173.145 | Q17: 204.476 | R17: 169.847 | S17: 212.721 | T17: 178.092
A18: B.ONE | B18: china | C18: air fryer | D18: ak-af-0002 | E18: air fryer 5.5 D (100) | F18: قلاية 5.5 لتر ديجيتال 100 | H18: 180 | I18: 174.6 | J18: 205.2 | K18: 196.2 | L18: 205.2 | M18: H6*1.07 | N18: 186.822 | O18: 216.504 | P18: 183.33 | Q18: 216.504 | R18: 179.838 | S18: 225.234 | T18: 188.568
A19: B.ONE | B19: china | C19: air fryer | D19: ak-af-0003 | E19: air fryer 5.5 n (200) | F19: قلاية 5.5 لتر عادة 200 | H19: 190 | I19: 184.3 | J19: 216.6 | K19: 207.1 | L19: 216.6 | M19: H6*1.07 | N19: 197.201 | O19: 228.532 | P19: 193.515 | Q19: 228.532 | R19: 189.829 | S19: 237.747 | T19: 199.044
A20: B.ONE | B20: china | C20: air fryer | D20: ak-af-0004 | E20: air fryer 5.5 D (200) | F20: قلاية 5.5 لتر ديجيتال 200 | H20: 200 | I20: 194 | J20: 228 | K20: 218 | L20: 228 | M20: H6*1.07 | N20: 207.58 | O20: 240.56 | P20: 203.7 | Q20: 240.56 | R20: 199.82 | S20: 250.26 | T20: 209.52
A21: Akai ind | B21: china | C21: iron | D21: ak-ir-0001 | E21: iron teflon | F21: مكواة تيفال | H21: 210 | I21: 203.7 | J21: 239.4 | K21: 228.9 | L21: 239.4 | M21: H6*1.07 | N21: 217.959 | O21: 252.588 | P21: 213.885 | Q21: 252.588 | R21: 209.811 | S21: 262.773 | T21: 219.996
A22: Akai ind | B22: china | C22: iron | D22: ak-ir-0002 | E22: iron ceramic | F22: مكواة سيراميك | H22: 220 | I22: 213.4 | J22: 250.8 | K22: 239.8 | L22: 250.8 | M22: H6*1.07 | N22: 228.338 | O22: 264.616 | P22: 224.07 | Q22: 264.616 | R22: 219.802 | S22: 275.286 | T22: 230.472
A23: Akai ind | B23: china | C23: yogurt | D23: ak-yg-0001 | E23: yogart n | F23: ماكينة زبادى عادة | H23: 230 | I23: 223.1 | J23: 262.2 | K23: 250.7 | L23: 262.2 | M23: H6*1.07 | N23: 238.717 | O23: 276.644 | P23: 234.255 | Q23: 276.644 | R23: 229.793 | S23: 287.799 | T23: 240.948
A24: Akai ind | B24: china | C24: kettle | D24: ak-kt-0001 | E24: kettle 1505 | F24: غلاية 1505 بلاستيك | H24: 240 | I24: 232.8 | J24: 273.6 | K24: 261.6 | L24: 273.6 | M24: H6*1.07 | N24: 249.096 | O24: 288.672 | P24: 244.44 | Q24: 288.672 | R24: 239.784 | S24: 300.312 | T24: 251.424
A25: Akai ind | B25: china | C25: kettle | D25: ak-kt-0002 | E25: kettle 1100 | F25: غلاية 1100 زجاج | H25: 250 | I25: 242.5 | J25: 285 | K25: 272.5 | L25: 285 | M25: H6*1.07 | N25: 259.475 | O25: 300.7 | P25: 254.625 | Q25: 300.7 | R25: 249.775 | S25: 312.825 | T25: 261.9
A26: Akai ind | B26: china | C26: oven | D26: ak-ov-0001 | E26: oven 45 LT | F26: فرن 45 لتر | H26: 260 | I26: 252.2 | J26: 296.4 | K26: 283.4 | L26: 296.4 | M26: H6*1.07 | N26: 269.854 | O26: 312.728 | P26: 264.81 | Q26: 312.728 | R26: 259.766 | S26: 325.338 | T26: 272.376
A27: Akai ind | B27: china | C27: oven | D27: ak-ov-0002 | E27: oven 55 LT | F27: فرن 55 لتر | H27: 270 | I27: 261.9 | J27: 307.8 | K27: 294.3 | L27: 307.8 | M27: H6*1.07 | N27: 280.233 | O27: 324.756 | P27: 274.995 | Q27: 324.756 | R27: 269.757 | S27: 337.851 | T27: 282.852
A28: Akai ind | B28: china | C28: oven | D28: ak-ov-0003 | E28: oven 70 LT | F28: فرن 70 لتر | H28: 280 | I28: 271.6 | J28: 319.2 | K28: 305.2 | L28: 319.2 | M28: H6*1.07 | N28: 290.612 | O28: 336.784 | P28: 285.18 | Q28: 336.784 | R28: 279.748 | S28: 350.364 | T28: 293.328
A29: B.ONE | B29: china | C29: water dispenser | D29: ak-wd-0001 | E29: water dispenser cab 2 tap | F29: مبرد 3 حنفية حافظة | H29: 290 | I29: 281.3 | J29: 330.6 | K29: 316.1 | L29: 330.6 | M29: H6*1.07 | N29: 300.991 | O29: 348.812 | P29: 295.365 | Q29: 348.812 | R29: 289.739 | S29: 362.877 | T29: 303.804
A30: B.ONE | B30: china | C30: water dispenser | D30: ak-wd-0002 | E30: water dispenser ref 3 tap | F30: مبرد 3 حنفية ثلاجة | H30: 300 | I30: 291 | J30: 342 | K30: 327 | L30: 342 | M30: H6*1.07 | N30: 311.37 | O30: 360.84 | P30: 305.55 | Q30: 360.84 | R30: 299.73 | S30: 375.39 | T30: 314.28
A31: B.ONE | B31: china | C31: water dispenser | D31: ak-wd-0003 | E31: water dispenser glass 2 tap | F31: مبرد 2 حنفية زجاج | H31: 310 | I31: 300.7 | J31: 353.4 | K31: 337.9 | L31: 353.4 | M31: H6*1.07 | N31: 321.749 | O31: 372.868 | P31: 315.735 | Q31: 372.868 | R31: 309.721 | S31: 387.903 | T31: 324.756
A32: Akai ind | B32: china | C32: oven | D32: ak-ov-0004 | E32: oven 40 LT 1 knobe | F32: فرن 40 لتر واحد زرار | H32: 320 | I32: 310.4 | J32: 364.8 | K32: 348.8 | L32: 364.8 | M32: H6*1.07 | N32: 332.128 | O32: 384.896 | P32: 325.92 | Q32: 384.896 | R32: 319.712 | S32: 400.416 | T32: 335.232
A33: AKAI Exp | B33: china | C33: blender | D33: ak-bl-0001 | F33: كيتشن تركي | H33: 330 | I33: 320.1 | J33: 376.2 | K33: 359.7 | L33: 376.2 | M33: H6*1.07 | N33: 342.507 | O33: 396.924 | P33: 336.105 | Q33: 396.924 | R33: 329.703 | S33: 412.929 | T33: 345.708
A34: Akai ind | B34: china | C34: blender | D34: ak-bl-0002 | F34: خلاط 400 | H34: 340 | I34: 329.8 | J34: 387.6 | K34: 370.6 | L34: 387.6 | M34: H6*1.07 | N34: 352.886 | O34: 408.952 | P34: 346.29 | Q34: 408.952 | R34: 339.694 | S34: 425.442 | T34: 356.184
A35: Akai ind | B35: china | C35: blender | D35: ak-bl-0003 | F35: مضرب عاده 400 | H35: 350 | I35: 339.5 | J35: 399 | K35: 381.5 | L35: 399 | M35: H6*1.07 | N35: 363.265 | O35: 420.98 | P35: 356.475 | Q35: 420.98 | R35: 349.685 | S35: 437.955 | T35: 366.66
A36: AKAI EXP | B36: china | C36: cooker | D36: ak-co-0001 | F36: بلاطة 1 عين تركي | H36: 360 | I36: 349.2 | J36: 410.4 | K36: 392.4 | L36: 410.4 | M36: H6*1.07 | N36: 373.644 | O36: 433.008 | P36: 366.66 | Q36: 433.008 | R36: 359.676 | S36: 450.468 | T36: 377.136
A37: AKAI EXP | B37: china | C37: cooker | D37: ak-co-0002 | F37: بلاطة 2 عين تركي | H37: 370 | I37: 358.9 | J37: 421.8 | K37: 403.3 | L37: 421.8 | M37: H6*1.07 | N37: 384.023 | O37: 445.036 | P37: 376.845 | Q37: 445.036 | R37: 369.667 | S37: 462.981 | T37: 387.612
A38: Akai ind | B38: china | C38: heater | D38: ak-he-0001 | E38: heater 4 tupe 2970 | F38: دفاية 4 شمعة 2970 | H38: 380 | I38: 368.6 | J38: 433.2 | K38: 414.2 | L38: 433.2 | M38: H6*1.07 | N38: 394.402 | O38: 457.064 | P38: 387.03 | Q38: 457.064 | R38: 379.658 | S38: 475.494 | T38: 398.088
A39: Akai ind | B39: china | C39: heater | D39: ak-he-0002 | E39: heater 3 tupe 2820 | F39: دفاية 3 شمعة 2820 | H39: 390 | I39: 378.3 | J39: 444.6 | K39: 425.1 | L39: 444.6 | M39: H6*1.07 | N39: 404.781 | O39: 469.092 | P39: 397.215 | Q39: 469.092 | R39: 389.649 | S39: 488.007 | T39: 408.564
A40: Akai ind | B40: china | C40: heater | D40: ak-he-0003 | E40: heater 4 tupe N | F40: دفاية 4 شمعة عادة | H40: 400 | I40: 388 | J40: 456 | K40: 436 | L40: 456 | M40: H6*1.07 | N40: 415.16 | O40: 481.12 | P40: 407.4 | Q40: 481.12 | R40: 399.64 | S40: 500.52 | T40: 419.04
A41: Akai ind | B41: china | C41: heater | D41: ak-he-0004 | E41: heater 4 tupe R | F41: دفاية 4 شمعة ريموت | H41: 410 | I41: 397.7 | J41: 467.4 | K41: 446.9 | L41: 467.4 | M41: H6*1.07 | N41: 425.539 | O41: 493.148 | P41: 417.585 | Q41: 493.148 | R41: 409.631 | S41: 513.033 | T41: 429.516
A42: Akai ind | B42: china | C42: heater | D42: ak-he-0005 | E42: heater 4 tupe 2050 | F42: دفاية 4 شمعة وسط 2050 | H42: 420 | I42: 407.4 | J42: 478.8 | K42: 457.8 | L42: 478.8 | M42: H6*1.07 | N42: 435.918 | O42: 505.176 | P42: 427.77 | Q42: 505.176 | R42: 419.622 | S42: 525.546 | T42: 439.992
A43: Akai ind | B43: china | C43: v.cleaner | D43: ak-vc-0001 | E43: v.cleaner 2000 w | F43: مكنسة بطة 2000 وات | H43: 430 | I43: 417.1 | J43: 490.2 | K43: 468.7 | L43: 490.2 | M43: H6*1.07 | N43: 446.297 | O43: 517.204 | P43: 437.955 | Q43: 517.204 | R43: 429.613 | S43: 538.059 | T43: 450.468
A44: Akai ind | B44: turky | C44: v.cleaner | D44: ak-vc-0002 | E44: v.cleaner tank | F44: مكنسة برميل تركي | H44: 440 | I44: 426.8 | J44: 501.6 | K44: 479.6 | L44: 501.6 | M44: H6*1.07 | N44: 456.676 | O44: 529.232 | P44: 448.14 | Q44: 529.232 | R44: 439.604 | S44: 550.572 | T44: 460.944
A45: B.ONE | B45: china | C45: b.b.q | D45: ak-bq-0001 | E45: b.b.q 2200 | F45: شواية | H45: 450 | I45: 436.5 | J45: 513 | K45: 490.5 | L45: 513 | M45: H6*1.07 | N45: 467.055 | O45: 541.26 | P45: 458.325 | Q45: 541.26 | R45: 449.595 | S45: 563.085 | T45: 471.42
A46: Akai ind | B46: china | C46: EXHAUST FAN | D46: ak-ex-0001 | E46: EXHAUST FAN 30 | F46: شفاط 30سم شبكة | H46: 460 | I46: 446.2 | J46: 524.4 | K46: 501.4 | L46: 524.4 | M46: H6*1.07 | N46: 477.434 | O46: 553.288 | P46: 468.51 | Q46: 553.288 | R46: 459.586 | S46: 575.598 | T46: 481.896
A47: Akai ind | B47: china | C47: gas cooker | D47: ak-gc-0006 | E47: gas cooker 3 flame | F47: مسطح 3 عين استانلس | H47: 470 | I47: 455.9 | J47: 535.8 | K47: 512.3 | L47: 535.8 | M47: H6*1.07 | N47: 487.813 | O47: 565.316 | P47: 478.695 | Q47: 565.316 | R47: 469.577 | S47: 588.111 | T47: 492.372
A48: AKAI EXP | B48: china | C48: chopper | D48: ak-ch-0001 | E48: chopper 500 2 blade | F48: كويكي 2 سكينة 500 | H48: 480 | I48: 465.6 | J48: 547.2 | K48: 523.2 | L48: 547.2 | M48: H6*1.07 | N48: 498.192 | O48: 577.344 | P48: 488.88 | Q48: 577.344 | R48: 479.568 | S48: 600.624 | T48: 502.848
A49: AKAI EXP | B49: turky | C49: chopper | D49: ak-ch-0002 | F49: كبة 1 حوض 2 سكينة 100 | H49: 490 | I49: 475.3 | J49: 558.6 | K49: 534.1 | L49: 558.6 | M49: H6*1.07 | N49: 508.571 | O49: 589.372 | P49: 499.065 | Q49: 589.372 | R49: 489.559 | S49: 613.137 | T49: 513.324
A50: AKAI EXP | B50: turky | C50: chopper | D50: ak-ch-0003 | F50: كبة 2 حوض 2 سكينة 150 | H50: 500 | I50: 485 | J50: 570 | K50: 545 | L50: 570 | M50: H6*1.07 | N50: 518.95 | O50: 601.4 | P50: 509.25 | Q50: 601.4 | R50: 499.55 | S50: 625.65 | T50: 523.8
A51: Akai ind | B51: china | C51: Ceiling fan | D51: ak-cf-0001 | F51: مروحة سقف 56" بوصة | H51: 510 | I51: 494.7 | J51: 581.4 | K51: 555.9 | L51: 581.4 | M51: H6*1.07 | N51: 529.329 | O51: 613.428 | P51: 519.435 | Q51: 613.428 | R51: 509.541 | S51: 638.163 | T51: 534.276
A52: Akai ind | B52: china | C52: fans | D52: ak-fa-0001 | F52: مروحة حائط 18 بوصة عادة | H52: 520 | I52: 504.4 | J52: 592.8 | K52: 566.8 | L52: 592.8 | M52: H6*1.07 | N52: 539.708 | O52: 625.456 | P52: 529.62 | Q52: 625.456 | R52: 519.532 | S52: 650.676 | T52: 544.752
A53: Akai ind | B53: china | C53: fans | D53: ak-fa-0002 | F53: مروحة حائط 18 بوصة ريموت | H53: 530 | I53: 514.1 | J53: 604.2 | K53: 577.7 | L53: 604.2 | M53: H6*1.07 | N53: 550.087 | O53: 637.484 | P53: 539.805 | Q53: 637.484 | R53: 529.523 | S53: 663.189 | T53: 555.228
A54: Akai ind | B54: china | C54: fans | D54: ak-fa-0003 | F54: مروحة عمود 18 بوصة عادة | H54: 540 | I54: 523.8 | J54: 615.6 | K54: 588.6 | L54: 615.6 | M54: H6*1.07 | N54: 560.466 | O54: 649.512 | P54: 549.99 | Q54: 649.512 | R54: 539.514 | S54: 675.702 | T54: 565.704
A55: Akai ind | B55: china | C55: fans | D55: ak-fa-0004 | F55: مروحة عمود 18 بوصة ريموت | H55: 550 | I55: 533.5 | J55: 627 | K55: 599.5 | L55: 627 | M55: H6*1.07 | N55: 570.845 | O55: 661.54 | P55: 560.175 | Q55: 661.54 | R55: 549.505 | S55: 688.215 | T55: 576.18
A56: Akai ind | B56: china | C56: fans | D56: ak-fa-0005 | F56: مروحة حائط 20 بوصة عادة | H56: 560 | I56: 543.2 | J56: 638.4 | K56: 610.4 | L56: 638.4 | M56: H6*1.07 | N56: 581.224 | O56: 673.568 | P56: 570.36 | Q56: 673.568 | R56: 559.496 | S56: 700.728 | T56: 586.656
A57: Akai ind | B57: china | C57: fans | D57: ak-fa-0006 | F57: مروحة عمود 20 بوصة عادة | H57: 570 | I57: 552.9 | J57: 649.8 | K57: 621.3 | L57: 649.8 | M57: H6*1.07 | N57: 591.603 | O57: 685.596 | P57: 580.545 | Q57: 685.596 | R57: 569.487 | S57: 713.241 | T57: 597.132
A58: Akai ind | B58: china | C58: fans | D58: ak-fa-0007 | F58: مروحة حائط 18 عادة موزة | H58: 580 | I58: 562.6 | J58: 661.2 | K58: 632.2 | L58: 661.2 | M58: H6*1.07 | N58: 601.982 | O58: 697.624 | P58: 590.73 | Q58: 697.624 | R58: 579.478 | S58: 725.754 | T58: 607.608
A59: Akai ind | B59: china | C59: fans | D59: ak-fa-0008 | F59: مروحة عمود 18 عادة موزة | H59: 590 | I59: 572.3 | J59: 672.6 | K59: 643.1 | L59: 672.6 | M59: H6*1.07 | N59: 612.361 | O59: 709.652 | P59: 600.915 | Q59: 709.652 | R59: 589.469 | S59: 738.267 | T59: 618.084
A60: Akai ind | B60: china | C60: fans | D60: ak-fa-0009 | F60: مروحة كاريوكا 18 بوصة | H60: 600 | I60: 582 | J60: 684 | K60: 654 | L60: 684 | M60: H6*1.07 | N60: 622.74 | O60: 721.68 | P60: 611.1 | Q60: 721.68 | R60: 599.46 | S60: 750.78 | T60: 628.56
A61: B.ONE | B61: china | C61: killer | D61: ak-kl-0001 | F61: صاعق ناموس بلاستيك 60 سم | H61: 610 | I61: 591.7 | J61: 695.4 | K61: 664.9 | L61: 695.4 | M61: H6*1.07 | N61: 633.119 | O61: 733.708 | P61: 621.285 | Q61: 733.708 | R61: 609.451 | S61: 763.293 | T61: 639.036
A62: AKAI EXP | B62: egypt | C62: colman | D62: ak-cl-0001 | F62: كولمن 20 لتر | H62: 620 | I62: 601.4 | J62: 706.8 | K62: 675.8 | L62: 706.8 | M62: H6*1.07 | N62: 643.498 | O62: 745.736 | P62: 631.47 | Q62: 745.736 | R62: 619.442 | S62: 775.806 | T62: 649.512
A63: AKAI EXP | B63: china | C63: air cooler | D63: ak-ac-0001 | F63: تكييف صحراوي 75 لتر | H63: 630 | I63: 611.1 | J63: 718.2 | K63: 686.7 | L63: 718.2 | M63: H6*1.07 | N63: 653.877 | O63: 757.764 | P63: 641.655 | Q63: 757.764 | R63: 629.433 | S63: 788.319 | T63: 659.988

Sheet 13-1-2024
A1: price list : 13-1-2024 | G1: =TODAY() -> 2024-01-15
J3: تاجر بخصم 5% اجل | L3: تاجر بخصم 7% نقدي | N3: ضريبي بخصم 5% اجل | P3: ضريبي بخصم 7%نقدي | R3: K.A
A4: factory | B4: supp | C4: group | D4: item code | E4: items | F4: items | G4: model | H4: base price | I4: قطعي بدون خصم | J4: سعر البيع | K4: الفاتورة | L4: سعر البيع | M4: الفاتورة | N4: سعر البيع | O4: الفاتورة بدون ض | P4: سعر البيع | Q4: الفاتورة بدون ض | R4: سعر البيع | S4: الفاتورة بدون ض
A5: AKAI Exp | B5: china | C5: t.v | D5: ak-tv-0001 | E5: t.v 32" | F5: شاشة 32 بوصة | H5: 55 | I5: =H5*0.97 -> 53.35 | J5: =H5*1.14 -> 62.7 | K5: =H5*1.09 -> 59.95 | L5: =H5*1.14 -> 62.7 | M5: H6*1.07 | N5: =I5*1.07 -> 57.0845 | O5: =I5*(1+0.05+0.09+0.1) -> 66.154 | P5: =I5*(1+0.05) -> 56.0175 | Q5: =I5*(1+0.05+0.09+0.1) -> 66.154 | R5: =I5*(1+0.03) -> 54.9505 | S5: =I5*(1+0.05+0.14+0.1) -> 68.8215 | T5: =I5*(1+0.03+0.05) -> 57.618
A6: AKAI Exp | B6: china | C6: t.v | D6: ak-tv-0002 | E6: t.v 43" | F6: شاشة 43 بوصة | H6: 65 | I6: 63.05 | J6: 74.1 | K6: 70.85 | L6: 74.1 | M6: H6*1.07 | N6: 67.4635 | O6: 78.182 | P6: 66.2025 | Q6: 78.182 | R6: 64.9415 | S6: 81.3345 | T6: 68.094
A7: B.ONE | B7: china | C7: washing | D7: ak-wa-0001 | E7: washing machin 10 kg | F7: غسالة 10 كيلو | H7: 75 | I7: 72.75 | J7: 85.5 | K7: 81.75 | L7: 85.5 | M7: H6*1.07 | N7: 77.8425 | O7: 90.21 | P7: 76.3875 | Q7: 90.21 | R7: 74.9325 | S7: 93.8475 | T7: 78.57
A8: AKAI Exp | B8: china | C8: Refrigerator | D8: ak-rf-0001 | E8: Refrigerator 4.5 | F8: ثلاجة مينى بار 4.5 | H8: 85 | I8: 82.45 | J8: 96.9 | K8: 92.65 | L8: 96.9 | M8: H6*1.07 | N8: 88.2215 | O8: 102.238 | P8: 86.5725 | Q8: 102.238 | R8: 84.9235 | S8: 106.3605 | T8: 89.046
A9: AKAI Exp | B9: china | C9: gas cooker | D9: ak-gc-0001 | E9: gas cooker 60*80 (107) | F9: بوتجاز 60*80 (107) | H9: 95 | I9: 92.15 | J9: 108.3 | K9: 103.55 | L9: 108.3 | M9: H6*1.07 | N9: 98.6005 | O9: 114.266 | P9: 96.7575 | Q9: 114.266 | R9: 94.9145 | S9: 118.8735 | T9: 99.522
A10: AKAI Exp | B10: china | C10: gas cooker | D10: ak-gc-0002 | E10: gas cooker 60*80 co (109) | F10: بوتجاز 60*80 نحاس (109) | H10: 105 | I10: 101.85 | J10: 119.7 | K10: 114.45 | L10: 119.7 | M10: H6*1.07 | N10: 108.9795 | O10: 126.294 | P10: 106.9425 | Q10: 126.294 | R10: 104.9055 | S10: 131.3865 | T10: 109.998
A11: AKAI Exp | B11: china | C11: gas cooker | D11: ak-gc-0003 | E11: gas cooker 60*80 & fan (110) | F11: بوتجاز 60*80 بالمروحة (110) | H11: 115 | I11: 111.55 | J11: 131.1 | K11: 125.35 | L11: 131.1 | M11: H6*1.07 | N11: 119.3585 | O11: 138.322 | P11: 117.1275 | Q11: 138.322 | R11: 114.8965 | S11: 143.8995 | T11: 120.474
A12: AKAI Exp | B12: china | C12: gas cooker | D12: ak-gc-0004 | E12: gas cooker 60*80 co (114) | F12: بوتجاز 60*90 نحاس (114) | H12: 125 | I12: 121.25 | J12: 142.5 | K12: 136.25 | L12: 142.5 | M12: H6*1.07 | N12: 129.7375 | O12: 150.35 | P12: 127.3125 | Q12: 150.35 | R12: 124.8875 | S12: 156.4125 | T12: 130.95
A13: AKAI Exp | B13: china | C13: gas cooker | D13: ak-gc-0005 | E13: gas cooker 60*80 & fan (115) | F13: بوتجاز 60*90 بالمروحة (115) | H13: 135 | I13: 130.95 | J13: 153.9 | K13: 147.15 | L13: 153.9 | M13: H6*1.07 | N13: 140.1165 | O13: 162.378 | P13: 137.4975 | Q13: 162.378 | R13: 134.8785 | S13: 168.9255 | T13: 141.426
A14: Akai ind | B14: china | C14: micro wave | D14: ak-mw-0001 | E14: micro wave 20 LT | F14: ميكروويف 20 لتر | H14: 145 | I14: 140.65 | J14: 165.3 | K14: 158.05 | L14: 165.3 | M14: H6*1.07 | N14: 150.4955 | O14: 174.406 | P14: 147.6825 | Q14: 174.406 | R14: 144.8695 | S14: 181.4385 | T14: 151.902
A15: Akai ind | B15: china | C15: micro wave | D15: ak-mw-0002 | E15: micro wave 25 LT | F15: ميكروويف 25 لتر | H15: 155 | I15: 150.35 | J15: 176.7 | K15: 168.95 | L15: 176.7 | M15: H6*1.07 | N15: 160.8745 | O15: 186.434 | P15: 157.8675 | Q15: 186.434 | R15: 154.8605 | S15: 193.9515 | T15: 162.378
A16: Akai ind | B16: china | C16: micro wave | D16: ak-mw-0003 | E16: micro wave 30 LT | F16: ميكروويف 30 لتر | H16: 165 | I16: 160.05 | J16: 188.1 | K16: 179.85 | L16: 188.1 | M16: H6*1.07 | N16: 171.2535 | O16: 198.462 | P16: 168.0525 | Q16: 198.462 | R16: 164.8515 | S16: 206.4645 | T16: 172.854
A17: B.ONE | B17: china | C17: air fryer | D17: ak-af-0001 | E17: air fryer 5.5 n (100) | F17: قلاية 5.5 لتر عادة 100 | H17: 175 | I17: 169.75 | J17: 199.5 | K17: 190.75 | L17: 199.5 | M17: H6*1.07 | N17: 181.6325 | O17: 210.49 | P17: 178.2375 | Q17: 210.49 | R17: 174.8425 | S17: 218.9775 | T17: 183.33
A18: B.ONE | B18: china | C18: air fryer | D18: ak-af-0002 | E18: air fryer 5.5 D (100) | F18: قلاية 5.5 لتر ديجيتال 100 | H18: 185 | I18: 179.45 | J18: 210.9 | K18: 201.65 | L18: 210.9 | M18: H6*1.07 | N18: 192.0115 | O18: 222.518 | P18: 188.4225 | Q18: 222.518 | R18: 184.8335 | S18: 231.4905 | T18: 193.806
A19: B.ONE | B19: china | C19: air fryer | D19: ak-af-0003 | E19: air fryer 5.5 n (200) | F19: قلاية 5.5 لتر عادة 200 | H19: 195 | I19: 189.15 | J19: 222.3 | K19: 212.55 | L19: 222.3 | M19: H6*1.07 | N19: 202.3905 | O19: 234.546 | P19: 198.6075 | Q19: 234.546 | R19: 194.8245 | S19: 244.0035 | T19: 204.282
A20: B.ONE | B20: china | C20: air fryer | D20: ak-af-0004 | E20: air fryer 5.5 D (200) | F20: قلاية 5.5 لتر ديجيتال 200 | H20: 205 | I20: 198.85 | J20: 233.7 | K20: 223.45 | L20: 233.7 | M20: H6*1.07 | N20: 212.7695 | O20: 246.574 | P20: 208.7925 | Q20: 246.574 | R20: 204.8155 | S20: 256.5165 | T20: 214.758
A21: Akai ind | B21: china | C21: iron | D21: ak-ir-0001 | E21: iron teflon | F21: مكواة تيفال | H21: 215 | I21: 208.55 | J21: 245.1 | K21: 234.35 | L21: 245.1 | M21: H6*1.07 | N21: 223.1485 | O21: 258.602 | P21: 218.9775 | Q21: 258.602 | R21: 214.8065 | S21: 269.0295 | T21: 225.234
A22: Akai ind | B22: china | C22: iron | D22: ak-ir-0002 | E22: iron ceramic | F22: مكواة سيراميك | H22: 225 | I22: 218.25 | J22: 256.5 | K22: 245.25 | L22: 256.5 | M22: H6*1.07 | N22: 233.5275 | O22: 270.63 | P22: 229.1625 | Q22: 270.63 | R22: 224.7975 | S22: 281.5425 | T22: 235.71
A23: Akai ind | B23: china | C23: yogurt | D23: ak-yg-0001 | E23: yogart n | F23: ماكينة زبادى عادة | H23: 235 | I23: 227.95 | J23: 267.9 | K23: 256.15 | L23: 267.9 | M23: H6*1.07 | N23: 243.9065 | O23: 282.658 | P23: 239.3475 | Q23: 282.658 | R23: 234.7885 | S23: 294.0555 | T23: 246.186
A24: Akai ind | B24: china | C24: kettle | D24: ak-kt-0001 | E24: kettle 1505 | F24: غلاية 1505 بلاستيك | H24: 245 | I24: 237.65 | J24: 279.3 | K24: 267.05 | L24: 279.3 | M24: H6*1.07 | N24: 254.2855 | O24: 294.686 | P24: 249.5325 | Q24: 294.686 | R24: 244.7795 | S24: 306.5685 | T24: 256.662
A25: Akai ind | B25: china | C25: kettle | D25: ak-kt-0002 | E25: kettle 1100 | F25: غلاية 1100 زجاج | H25: 255 | I25: 247.35 | J25: 290.7 | K25: 277.95 | L25: 290.7 | M25: H6*1.07 | N25: 264.6645 | O25: 306.714 | P25: 259.7175 | Q25: 306.714 | R25: 254.7705 | S25: 319.0815 | T25: 267.138
A26: Akai ind | B26: china | C26: oven | D26: ak-ov-0001 | E26: oven 45 LT | F26: فرن 45 لتر | H26: 265 | I26: 257.05 | J26: 302.1 | K26: 288.85 | L26: 302.1 | M26: H6*1.07 | N26: 275.0435 | O26: 318.742 | P26: 269.9025 | Q26: 318.742 | R26: 264.7615 | S26: 331.5945 | T26: 277.614
A27: Akai ind | B27: china | C27: oven | D27: ak-ov-0002 | E27: oven 55 LT | F27: فرن 55 لتر | H27: 275 | I27: 266.75 | J27: 313.5 | K27: 299.75 | L27: 313.5 | M27: H6*1.07 | N27: 285.4225 | O27: 330.77 | P27: 280.0875 | Q27: 330.77 | R27: 274.7525 | S27: 344.1075 | T27: 288.09
A28: Akai ind | B28: china | C28: oven | D28: ak-ov-0003 | E28: oven 70 LT | F28: فرن 70 لتر | H28: 285 | I28: 276.45 | J28: 324.9 | K28: 310.65 | L28: 324.9 | M28: H6*1.07 | N28: 295.8015 | O28: 342.798 | P28: 290.2725 | Q28: 342.798 | R28: 284.7435 | S28: 356.6205 | T28: 298.566
A29: B.ONE | B29: china | C29: water dispenser | D29: ak-wd-0001 | E29: water dispenser cab 2 tap | F29: مبرد 3 حنفية حافظة | H29: 295 | I29: 286.15 | J29: 336.3 | K29: 321.55 | L29: 336.3 | M29: H6*1.07 | N29: 306.1805 | O29: 354.826 | P29: 300.4575 | Q29: 354.826 | R29: 294.7345 | S29: 369.1335 | T29: 309.042
A30: B.ONE | B30: china | C30: water dispenser | D30: ak-wd-0002 | E30: water dispenser ref 3 tap | F30: مبرد 3 حنفية ثلاجة | H30: 305 | I30: 295.85 | J30: 347.7 | K30: 332.45 | L30: 347.7 | M30: H6*1.07 | N30: 316.5595 | O30: 366.854 | P30: 310.6425 | Q30: 366.854 | R30: 304.7255 | S30: 381.6465 | T30: 319.518
A31: B.ONE | B31: china | C31: water dispenser | D31: ak-wd-0003 | E31: water dispenser glass 2 tap | F31: مبرد 2 حنفية زجاج | H31: 315 | I31: 305.55 | J31: 359.1 | K31: 343.35 | L31: 359.1 | M31: H6*1.07 | N31: 326.9385 | O31: 378.882 | P31: 320.8275 | Q31: 378.882 | R31: 314.7165 | S31: 394.1595 | T31: 329.994
A32: Akai ind | B32: china | C32: oven | D32: ak-ov-0004 | E32: oven 40 LT 1 knobe | F32: فرن 40 لتر واحد زرار | H32: 325 | I32: 315.25 | J32: 370.5 | K32: 354.25 | L32: 370.5 | M32: H6*1.07 | N32: 337.3175 | O32: 390.91 | P32: 331.0125 | Q32: 390.91 | R32: 324.7075 | S32: 406.6725 | T32: 340.47
A33: AKAI Exp | B33: china | C33: blender | D33: ak-bl-0001 | F33: كيتشن تركي | H33: 335 | I33: 324.95 | J33: 381.9 | K33: 365.15 | L33: 381.9 | M33: H6*1.07 | N33: 347.6965 | O33: 402.938 | P33: 341.1975 | Q33: 402.938 | R33: 334.6985 | S33: 419.1855 | T33: 350.946
A34: Akai ind | B34: china | C34: blender | D34: ak-bl-0002 | F34: خلاط 400 | H34: 345 | I34: 334.65 | J34: 393.3 | K34: 376.05 | L34: 393.3 | M34: H6*1.07 | N34: 358.0755 | O34: 414.966 | P34: 351.3825 | Q34: 414.966 | R34: 344.6895 | S34: 431.6985 | T34: 361.422
A35: Akai ind | B35: china | C35: blender | D35: ak-bl-0003 | F35: مضرب عاده 400 | H35: 355 | I35: 344.35 | J35: 404.7 | K35: 386.95 | L35: 404.7 | M35: H6*1.07 | N35: 368.4545 | O35: 426.994 | P35: 361.5675 | Q35: 426.994 | R35: 354.6805 | S35: 444.2115 | T35: 371.898
A36: AKAI EXP | B36: china | C36: cooker | D36: ak-co-0001 | F36: بلاطة 1 عين تركي | H36: 365 | I36: 354.05 | J36: 416.1 | K36: 397.85 | L36: 416.1 | M36: H6*1.07 | N36: 378.8335 | O36: 439.022 | P36: 371.7525 | Q36: 439.022 | R36: 364.6715 | S36: 456.7245 | T36: 382.374
A37: AKAI EXP | B37: china | C37: cooker | D37: ak-co-0002 | F37: بلاطة 2 عين تركي | H37: 375 | I37: 363.75 | J37: 427.5 | K37: 408.75 | L37: 427.5 | M37: H6*1.07 | N37: 389.2125 | O37: 451.05 | P37: 381.9375 | Q37: 451.05 | R37: 374.6625 | S37: 469.2375 | T37: 392.85
A38: Akai ind | B38: china | C38: heater | D38: ak-he-0001 | E38: heater 4 tupe 2970 | F38: دفاية 4 شمعة 2970 | H38: 385 | I38: 373.45 | J38: 438.9 | K38: 419.65 | L38: 438.9 | M38: H6*1.07 | N38: 399.5915 | O38: 463.078 | P38: 392.1225 | Q38: 463.078 | R38: 384.6535 | S38: 481.7505 | T38: 403.326
A39: Akai ind | B39: china | C39: heater | D39: ak-he-0002 | E39: heater 3 tupe 2820 | F39: دفاية 3 شمعة 2820 | H39: 395 | I39: 383.15 | J39: 450.3 | K39: 430.55 | L39: 450.3 | M39: H6*1.07 | N39: 409.9705 | O39: 475.106 | P39: 402.3075 | Q39: 475.106 | R39: 394.6445 | S39: 494.2635 | T39: 413.802
A40: Akai ind | B40: china | C40: heater | D40: ak-he-0003 | E40: heater 4 tupe N | F40: دفاية 4 شمعة عادة | H40: 405 | I40: 392.85 | J40: 461.7 | K40: 441.45 | L40: 461.7 | M40: H6*1.07 | N40: 420.3495 | O40: 487.134 | P40: 412.4925 | Q40: 487.134 | R40: 404.6355 | S40: 506.7765 | T40: 424.278
A41: Akai ind | B41: china | C41: heater | D41: ak-he-0004 | E41: heater 4 tupe R | F41: دفاية 4 شمعة ريموت | H41: 415 | I41: 402.55 | J41: 473.1 | K41: 452.35 | L41: 473.1 | M41: H6*1.07 | N41: 430.7285 | O41: 499.162 | P41: 422.6775 | Q41: 499.162 | R41: 414.6265 | S41: 519.2895 | T41: 434.754
A42: Akai ind | B42: china | C42: heater | D42: ak-he-0005 | E42: heater 4 tupe 2050 | F42: دفاية 4 شمعة وسط 2050 | H42: 425 | I42: 412.25 | J42: 484.5 | K42: 463.25 | L42: 484.5 | M42: H6*1.07 | N42: 441.1075 | O42: 511.19 | P42: 432.8625 | Q42: 511.19 | R42: 424.6175 | S42: 531.8025 | T42: 445.23
A43: Akai ind | B43: china | C43: v.cleaner | D43: ak-vc-0001 | E43: v.cleaner 2000 w | F43: مكنسة بطة 2000 وات | H43: 435 | I43: 421.95 | J43: 495.9 | K43: 474.15 | L43: 495.9 | M43: H6*1.07 | N43: 451.4865 | O43: 523.218 | P43: 443.0475 | Q43: 523.218 | R43: 434.6085 | S43: 544.3155 | T43: 455.706
A44: Akai ind | B44: turky | C44: v.cleaner | D44: ak-vc-0002 | E44: v.cleaner tank | F44: مكنسة برميل تركي | H44: 445 | I44: 431.65 | J44: 507.3 | K44: 485.05 | L44: 507.3 | M44: H6*1.07 | N44: 461.8655 | O44: 535.246 | P44: 453.2325 | Q44: 535.246 | R44: 444.5995 | S44: 556.8285 | T44: 466.182
A45: B.ONE | B45: china | C45: b.b.q | D45: ak-bq-0001 | E45: b.b.q 2200 | F45: شواية | H45: 455 | I45: 441.35 | J45: 518.7 | K45: 495.95 | L45: 518.7 | M45: H6*1.07 | N45: 472.2445 | O45: 547.274 | P45: 463.4175 | Q45: 547.274 | R45: 454.5905 | S45: 569.3415 | T45: 476.658
A46: Akai ind | B46: china | C46: EXHAUST FAN | D46: ak-ex-0001 | E46: EXHAUST FAN 30 | F46: شفاط 30سم شبكة | H46: 465 | I46: 451.05 | J46: 530.1 | K46: 506.85 | L46: 530.1 | M46: H6*1.07 | N46: 482.6235 | O46: 559.302 | P46: 473.6025 | Q46: 559.302 | R46: 464.5815 | S46: 581.8545 | T46: 487.134
A47: Akai ind | B47: china | C47: gas cooker | D47: ak-gc-0006 | E47: gas cooker 3 flame | F47: مسطح 3 عين استانلس | H47: 475 | I47: 460.75 | J47: 541.5 | K47: 517.75 | L47: 541.5 | M47: H6*1.07 | N47: 493.0025 | O47: 571.33 | P47: 483.7875 | Q47: 571.33 | R47: 474.5725 | S47: 594.3675 | T47: 497.61
A48: AKAI EXP | B48: china | C48: chopper | D48: ak-ch-0001 | E48: chopper 500 2 blade | F48: كويكي 2 سكينة 500 | H48: 485 | I48: 470.45 | J48: 552.9 | K48: 528.65 | L48: 552.9 | M48: H6*1.07 | N48: 503.3815 | O48: 583.358 | P48: 493.9725 | Q48: 583.358 | R48: 484.5635 | S48: 606.8805 | T48: 508.086
A49: AKAI EXP | B49: turky | C49: chopper | D49: ak-ch-0002 | F49: كبة 1 حوض 2 سكينة 100 | H49: 495 | I49: 480.15 | J49: 564.3 | K49: 539.55 | L49: 564.3 | M49: H6*1.07 | N49: 513.7605 | O49: 595.386 | P49: 504.1575 | Q49: 595.386 | R49: 494.5545 | S49: 619.3935 | T49: 518.562
A50: AKAI EXP | B50: turky | C50: chopper | D50: ak-ch-0003 | F50: كبة 2 حوض 2 سكينة 150 | H50: 505 | I50: 489.85 | J50: 575.7 | K50: 550.45 | L50: 575.7 | M50: H6*1.07 | N50: 524.1395 | O50: 607.414 | P50: 514.3425 | Q50: 607.414 | R50: 504.5455 | S50: 631.9065 | T50: 529.038
A51: Akai ind | B51: china | C51: Ceiling fan | D51: ak-cf-0001 | F51: مروحة سقف 56" بوصة | H51: 515 | I51: 499.55 | J51: 587.1 | K51: 561.35 | L51: 587.1 | M51: H6*1.07 | N51: 534.5185 | O51: 619.442 | P51: 524.5275 | Q51: 619.442 | R51: 514.5365 | S51: 644.4195 | T51: 539.514
A52: Akai ind | B52: china | C52: fans | D52: ak-fa-0001 | F52: مروحة حائط 18 بوصة عادة | H52: 525 | I52: 509.25 | J52: 598.5 | K52: 572.25 | L52: 598.5 | M52: H6*1.07 | N52: 544.8975 | O52: 631.47 | P52: 534.7125 | Q52: 631.47 | R52: 524.5275 | S52: 656.9325 | T52: 549.99
A53: Akai ind | B53: china | C53: fans | D53: ak-fa-0002 | F53: مروحة حائط 18 بوصة ريموت | H53: 535 | I53: 518.95 | J53: 609.9 | K53: 583.15 | L53: 609.9 | M53: H6*1.07 | N53: 555.2765 | O53: 643.498 | P53: 544.8975 | Q53: 643.498 | R53: 534.5185 | S53: 669.4455 | T53: 560.466
A54: Akai ind | B54: china | C54: fans | D54: ak-fa-0003 | F54: مروحة عمود 18 بوصة عادة | H54: 545 | I54: 528.65 | J54: 621.3 | K54: 594.05 | L54: 621.3 | M54: H6*1.07 | N54: 565.6555 | O54: 655.526 | P54: 555.0825 | Q54: 655.526 | R54: 544.5095 | S54: 681.9585 | T54: 570.942
A55: Akai ind | B55: china | C55: fans | D55: ak-fa-0004 | F55: مروحة عمود 18 بوصة ريموت | H55: 555 | I55: 538.35 | J55: 632.7 | K55: 604.95 | L55: 632.7 | M55: H6*1.07 | N55: 576.0345 | O55: 667.554 | P55: 565.2675 | Q55: 667.554 | R55: 554.5005 | S55: 694.4715 | T55: 581.418
A56: Akai ind | B56: china | C56: fans | D56: ak-fa-0005 | F56: مروحة حائط 20 بوصة عادة | H56: 565 | I56: 548.05 | J56: 644.1 | K56: 615.85 | L56: 644.1 | M56: H6*1.07 | N56: 586.4135 | O56: 679.582 | P56: 575.4525 | Q56: 679.582 | R56: 564.4915 | S56: 706.9845 | T56: 591.894
A57: Akai ind | B57: china | C57: fans | D57: ak-fa-0006 | F57: مروحة عمود 20 بوصة عادة | H57: 575 | I57: 557.75 | J57: 655.5 | K57: 626.75 | L57: 655.5 | M57: H6*1.07 | N57: 596.7925 | O57: 691.61 | P57: 585.6375 | Q57: 691.61 | R57: 574.4825 | S57: 719.4975 | T57: 602.37
A58: Akai ind | B58: china | C58: fans | D58: ak-fa-0007 | F58: مروحة حائط 18 عادة موزة | H58: 585 | I58: 567.45 | J58: 666.9 | K58: 637.65 | L58: 666.9 | M58: H6*1.07 | N58: 607.1715 | O58: 703.638 | P58: 595.8225 | Q58: 703.638 | R58: 584.4735 | S58: 732.0105 | T58: 612.846
A59: Akai ind | B59: china | C59: fans | D59: ak-fa-0008 | F59: مروحة عمود 18 عادة موزة | H59: 595 | I59: 577.15 | J59: 678.3 | K59: 648.55 | L59: 678.3 | M59: H6*1.07 | N59: 617.5505 | O59: 715.666 | P59: 606.0075 | Q59: 715.666 | R59: 594.4645 | S59: 744.5235 | T59: 623.322
A60: Akai ind | B60: china | C60: fans | D60: ak-fa-0009 | F60: مروحة كاريوكا 18 بوصة | H60: 605 | I60: 586.85 | J60: 689.7 | K60: 659.45 | L60: 689.7 | M60: H6*1.07 | N60: 627.9295 | O60: 727.694 | P60: 616.1925 | Q60: 727.694 | R60: 604.4555 | S60: 757.0365 | T60: 633.798
A61: B.ONE | B61: china | C61: killer | D61: ak-kl-0001 | F61: صاعق ناموس بلاستيك 60 سم | H61: 615 | I61: 596.55 | J61: 701.1 | K61: 670.35 | L61: 701.1 | M61: H6*1.07 | N61: 638.3085 | O61: 739.722 | P61: 626.3775 | Q61: 739.722 | R61: 614.4465 | S61: 769.5495 | T61: 644.274
A62: AKAI EXP | B62: egypt | C62: colman | D62: ak-cl-0001 | F62: كولمن 20 لتر | H62: 625 | I62: 606.25 | J62: 712.5 | K62: 681.25 | L62: 712.5 | M62: H6*1.07 | N62: 648.6875 | O62: 751.75 | P62: 636.5625 | Q62: 751.75 | R62: 624.4375 | S62: 782.0625 | T62: 654.75
A63: AKAI EXP | B63: china | C63: air cooler | D63: ak-ac-0001 | F63: تكييف صحراوي 75 لتر | H63: 635 | I63: 615.95 | J63: 723.9 | K63: 692.15 | L63: 723.9 | M63: H6*1.07 | N63: 659.0665 | O63: 763.778 | P63: 646.7475 | Q63: 763.778 | R63: 634.4285 | S63: 794.5755 | T63: 665.226

Sheet price_list
B1: price list : 10-1-2024 | H1: =TODAY() -> 2024-01-15
K3: تاجر بخصم 5% اجل | M3: تاجر بخصم 7% نقدي | O3: ضريبي بخصم 5% اجل | Q3: ضريبي بخصم 7%نقدي | S3: K.A
A4: date | B4: factory | C4: supp | D4: group | E4: item code | F4: items | G4: items | H4: model | I4: base price | J4: قطعي بدون خصم | K4: سعر البيع | L4: الفاتورة | M4: سعر البيع | N4: الفاتورة | O4: سعر البيع | P4: الفاتورة بدون ض | Q4: سعر البيع | R4: الفاتورة بدون ض | S4: سعر البيع | T4: الفاتورة بدون ض
A5: 2024-01-11 | B5: AKAI Exp | C5: china | D5: t.v | E5: ak-tv-0001 | F5: t.v 32" | G5: شاشة 32 بوصة | I5: 50 | J5: =I5*0.97 -> 48.5 | K5: =I5*1.14 -> 57 | L5: =I5*1.09 -> 54.5 | M5: =I5*1.14 -> 57 | N5: H6*1.07 | O5: =J5*1.07 -> 51.895 | P5: =J5*(1+0.05+0.09+0.1) -> 60.14 | Q5: =J5*(1+0.05) -> 50.925 | R5: =J5*(1+0.05+0.09+0.1) -> 60.14 | S5: =J5*(1+0.03) -> 49.955 | T5: =J5*(1+0.05+0.14+0.1) -> 62.565 | U5: =J5*(1+0.03+0.05) -> 52.38
A6: 2024-01-11 | B6: AKAI Exp | C6: china | D6: t.v | E6: ak-tv-0002 | F6: t.v 43" | G6: شاشة 43 بوصة | I6: 60 | J6: 58.2 | K6: 68.4 | L6: 65.4 | M6: 68.4 | N6: H6*1.07 | O6: 62.274 | P6: 72.168 | Q6: 61.11 | R6: 72.168 | S6: 59.946 | T6: 75.078 | U6: 62.856
A7: 2024-01-11 | B7: B.ONE | C7: china | D7: washing | E7: ak-wa-0001 | F7: washing machin 10 kg | G7: غسالة 10 كيلو | I7: 70 | J7: 67.9 | K7: 79.8 | L7: 76.3 | M7: 79.8 | N7: H6*1.07 | O7: 72.653 | P7: 84.196 | Q7: 71.295 | R7: 84.196 | S7: 69.937 | T7: 87.591 | U7: 73.332
A8: 2024-01-11 | B8: AKAI Exp | C8: china | D8: Refrigerator | E8: ak-rf-0001 | F8: Refrigerator 4.5 | G8: ثلاجة مينى بار 4.5 | I8: 80 | J8: 77.6 | K8: 91.2 | L8: 87.2 | M8: 91.2 | N8: H6*1.07 | O8: 83.032 | P8: 96.224 | Q8: 81.48 | R8: 96.224 | S8: 79.928 | T8: 100.104 | U8: 83.808
A9: 2024-01-11 | B9: AKAI Exp | C9: china | D9: gas cooker | E9: ak-gc-0001 | F9: gas cooker 60*80 (107) | G9: بوتجاز 60*80 (107) | I9: 90 | J9: 87.3 | K9: 102.6 | L9: 98.1 | M9: 102.6 | N9: H6*1.07 | O9: 93.411 | P9: 108.252 | Q9: 91.665 | R9: 108.252 | S9: 89.919 | T9: 112.617 | U9: 94.284
A10: 2024-01-11 | B10: AKAI Exp | C10: china | D10: gas cooker | E10: ak-gc-0002 | F10: gas cooker 60*80 co (109) | G10: بوتجاز 60*80 نحاس (109) | I10: 100 | J10: 97 | K10: 114 | L10: 109 | M10: 114 | N10: H6*1.07 | O10: 103.79 | P10: 120.28 | Q10: 101.85 | R10: 120.28 | S10: 99.91 | T10: 125.13 | U10: 104.76
A11: 2024-01-11 | B11: AKAI Exp | C11: china | D11: gas cooker | E11: ak-gc-0003 | F11: gas cooker 60*80 & fan (110) | G11: بوتجاز 60*80 بالمروحة (110) | I11: 110 | J11: 106.7 | K11: 125.4 | L11: 119.9 | M11: 125.4 | N11: H6*1.07 | O11: 114.169 | P11: 132.308 | Q11: 112.035 | R11: 132.308 | S11: 109.901 | T11: 137.643 | U11: 115.236
A12: 2024-01-11 | B12: AKAI Exp | C12: china | D12: gas cooker | E12: ak-gc-0004 | F12: gas cooker 60*80 co (114) | G12: بوتجاز 60*90 نحاس (114) | I12: 120 | J12: 116.4 | K12: 136.8 | L12: 130.8 | M12: 136.8 | N12: H6*1.07 | O12: 124.548 | P12: 144.336 | Q12: 122.22 | R12: 144.336 | S12: 119.892 | T12: 150.156 | U12: 125.712
A13: 2024-01-11 | B13: AKAI Exp | C13: china | D13: gas cooker | E13: ak-gc-0005 | F13: gas cooker 60*80 & fan (115) | G13: بوتجاز 60*90 بالمروحة (115) | I13: 130 | J13: 126.1 | K13: 148.2 | L13: 141.7 | M13: 148.2 | N13: H6*1.07 | O13: 134.927 | P13: 156.364 | Q13: 132.405 | R13: 156.364 | S13: 129.883 | T13: 162.669 | U13: 136.188
A14: 2024-01-11 | B14: Akai ind | C14: china | D14: micro wave | E14: ak-mw-0001 | F14: micro wave 20 LT | G14: ميكروويف 20 لتر | I14: 140 | J14: 135.8 | K14: 159.6 | L14: 152.6 | M14: 159.6 | N14: H6*1.07 | O14: 145.306 | P14: 168.392 | Q14: 142.59 | R14: 168.392 | S14: 139.874 | T14: 175.182 | U14: 146.664
A15: 2024-01-11 | B15: Akai ind | C15: china | D15: micro wave | E15: ak-mw-0002 | F15: micro wave 25 LT | G15: ميكروويف 25 لتر | I15: 150 | J15: 145.5 | K15: 171 | L15: 163.5 | M15: 171 | N15: H6*1.07 | O15: 155.685 | P15: 180.42 | Q15: 152.775 | R15: 180.42 | S15: 149.865 | T15: 187.695 | U15: 157.14
A16: 2024-01-11 | B16: Akai ind | C16: china | D16: micro wave | E16: ak-mw-0003 | F16: micro wave 30 LT | G16: ميكروويف 30 لتر | I16: 160 | J16: 155.2 | K16: 182.4 | L16: 174.4 | M16: 182.4 | N16: H6*1.07 | O16: 166.064 | P16: 192.448 | Q16: 162.96 | R16: 192.448 | S16: 159.856 | T16: 200.208 | U16: 167.616
A17: 2024-01-11 | B17: B.ONE | C17: china | D17: air fryer | E17: ak-af-0001 | F17: air fryer 5.5 n (100) | G17: قلاية 5.5 لتر عادة 100 | I17: 170 | J17: 164.9 | K17: 193.8 | L17: 185.3 | M17: 193.8 | N17: H6*1.07 | O17: 176.443 | P17: 204.476 | Q17: 173.145 | R17: 204.476 | S17: 169.847 | T17: 212.721 | U17: 178.092
A18: 2024-01-11 | B18: B.ONE | C18: china | D18: air fryer | E18: ak-af-0002 | F18: air fryer 5.5 D (100) | G18: قلاية 5.5 لتر ديجيتال 100 | I18: 180 | J18: 174.6 | K18: 205.2 | L18: 196.2 | M18: 205.2 | N18: H6*1.07 | O18: 186.822 | P18: 216.504 | Q18: 183.33 | R18: 216.504 | S18: 179.838 | T18: 225.234 | U18: 188.568
A19: 2024-01-11 | B19: B.ONE | C19: china | D19: air fryer | E19: ak-af-0003 | F19: air fryer 5.5 n (200) | G19: قلاية 5.5 لتر عادة 200 | I19: 190 | J19: 184.3 | K19: 216.6 | L19: 207.1 | M19: 216.6 | N19: H6*1.07 | O19: 197.201 | P19: 228.532 | Q19: 193.515 | R19: 228.532 | S19: 189.829 | T19: 237.747 | U19: 199.044
A20: 2024-01-11 | B20: B.ONE | C20: china | D20: air fryer | E20: ak-af-0004 | F20: air fryer 5.5 D (200) | G20: قلاية 5.5 لتر ديجيتال 200 | I20: 200 | J20: 194 | K20: 228 | L20: 218 | M20: 228 | N20: H6*1.07 | O20: 207.58 | P20: 240.56 | Q20: 203.7 | R20: 240.56 | S20: 199.82 | T20: 250.26 | U20: 209.52
A21: 2024-01-11 | B21: Akai ind | C21: china | D21: iron | E21: ak-ir-0001 | F21: iron teflon | G21: مكواة تيفال | I21: 210 | J21: 203.7 | K21: 239.4 | L21: 228.9 | M21: 239.4 | N21: H6*1.07 | O21: 217.959 | P21: 252.588 | Q21: 213.885 | R21: 252.588 | S21: 209.811 | T21: 262.773 | U21: 219.996
A22: 2024-01-11 | B22: Akai ind | C22: china | D22: iron | E22: ak-ir-0002 | F22: iron ceramic | G22: مكواة سيراميك | I22: 220 | J22: 213.4 | K22: 250.8 | L22: 239.8 | M22: 250.8 | N22: H6*1.07 | O22: 228.338 | P22: 264.616 | Q22: 224.07 | R22: 264.616 | S22: 219.802 | T22: 275.286 | U22: 230.472
A23: 2024-01-11 | B23: Akai ind | C23: china | D23: yogurt | E23: ak-yg-0001 | F23: yogart n | G23: ماكينة زبادى عادة | I23: 230 | J23: 223.1 | K23: 262.2 | L23: 250.7 | M23: 262.2 | N23: H6*1.07 | O23: 238.717 | P23: 276.644 | Q23: 234.255 | R23: 276.644 | S23: 229.793 | T23: 287.799 | U23: 240.948
A24: 2024-01-11 | B24: Akai ind | C24: china | D24: kettle | E24: ak-kt-0001 | F24: kettle 1505 | G24: غلاية 1505 بلاستيك | I24: 240 | J24: 232.8 | K24: 273.6 | L24: 261.6 | M24: 273.6 | N24: H6*1.07 | O24: 249.096 | P24: 288.672 | Q24: 244.44 | R24: 288.672 | S24: 239.784 | T24: 300.312 | U24: 251.424
A25: 2024-01-11 | B25: Akai ind | C25: china | D25: kettle | E25: ak-kt-0002 | F25: kettle 1100 | G25: غلاية 1100 زجاج | I25: 250 | J25: 242.5 | K25: 285 | L25: 272.5 | M25: 285 | N25: H6*1.07 | O25: 259.475 | P25: 300.7 | Q25: 254.625 | R25: 300.7 | S25: 249.775 | T25: 312.825 | U25: 261.9
A26: 2024-01-11 | B26: Akai ind | C26: china | D26: oven | E26: ak-ov-0001 | F26: oven 45 LT | G26: فرن 45 لتر | I26: 260 | J26: 252.2 | K26: 296.4 | L26: 283.4 | M26: 296.4 | N26: H6*1.07 | O26: 269.854 | P26: 312.728 | Q26: 264.81 | R26: 312.728 | S26: 259.766 | T26: 325.338 | U26: 272.376
A27: 2024-01-11 | B27: Akai ind | C27: china | D27: oven | E27: ak-ov-0002 | F27: oven 55 LT | G27: فرن 55 لتر | I27: 270 | J27: 261.9 | K27: 307.8 | L27: 294.3 | M27: 307.8 | N27: H6*1.07 | O27: 280.233 | P27: 324.756 | Q27: 274.995 | R27: 324.756 | S27: 269.757 | T27: 337.851 | U27: 282.852
A28: 2024-01-11 | B28: Akai ind | C28: china | D28: oven | E28: ak-ov-0003 | F28: oven 70 LT | G28: فرن 70 لتر | I28: 280 | J28: 271.6 | K28: 319.2 | L28: 305.2 | M28: 319.2 | N28: H6*1.07 | O28: 290.612 | P28: 336.784 | Q28: 285.18 | R28: 336.784 | S28: 279.748 | T28: 350.364 | U28: 293.328
A29: 2024-01-11 | B29: B.ONE | C29: china | D29: water dispenser | E29: ak-wd-0001 | F29: water dispenser cab 2 tap | G29: مبرد 3 حنفية حافظة | I29: 290 | J29: 281.3 | K29: 330.6 | L29: 316.1 | M29: 330.6 | N29: H6*1.07 | O29: 300.991 | P29: 348.812 | Q29: 295.365 | R29: 348.812 | S29: 289.739 | T29: 362.877 | U29: 303.804
A30: 2024-01-11 | B30: B.ONE | C30: china | D30: water dispenser | E30: ak-wd-0002 | F30: water dispenser ref 3 tap | G30: مبرد 3 حنفية ثلاجة | I30: 300 | J30: 291 | K30: 342 | L30: 327 | M30: 342 | N30: H6*1.07 | O30: 311.37 | P30: 360.84 | Q30: 305.55 | R30: 360.84 | S30: 299.73 | T30: 375.39 | U30: 314.28
A31: 2024-01-11 | B31: B.ONE | C31: china | D31: water dispenser | E31: ak-wd-0003 | F31: water dispenser glass 2 tap | G31: مبرد 2 حنفية زجاج | I31: 310 | J31: 300.7 | K31: 353.4 | L31: 337.9 | M31: 353.4 | N31: H6*1.07 | O31: 321.749 | P31: 372.868 | Q31: 315.735 | R31: 372.868 | S31: 309.721 | T31: 387.903 | U31: 324.756
A32: 2024-01-11 | B32: Akai ind | C32: china | D32: oven | E32: ak-ov-0004 | F32: oven 40 LT 1 knobe | G32: فرن 40 لتر واحد زرار | I32: 320 | J32: 310.4 | K32: 364.8 | L32: 348.8 | M32: 364.8 | N32: H6*1.07 | O32: 332.128 | P32: 384.896 | Q32: 325.92 | R32: 384.896 | S32: 319.712 | T32: 400.416 | U32: 335.232
A33: 2024-01-11 | B33: AKAI Exp | C33: china | D33: blender | E33: ak-bl-0001 | G33: كيتشن تركي | I33: 330 | J33: 320.1 | K33: 376.2 | L33: 359.7 | M33: 376.2 | N33: H6*1.07 | O33: 342.507 | P33: 396.924 | Q33: 336.105 | R33: 396.924 | S33: 329.703 | T33: 412.929 | U33: 345.708
A34: 2024-01-11 | B34: Akai ind | C34: china | D34: blender | E34: ak-bl-0002 | G34: خلاط 400 | I34: 340 | J34: 329.8 | K34: 387.6 | L34: 370.6 | M34: 387.6 | N34: H6*1.07 | O34: 352.886 | P34: 408.952 | Q34: 346.29 | R34: 408.952 | S34: 339.694 | T34: 425.442 | U34: 356.184
A35: 2024-01-11 | B35: Akai ind | C35: china | D35: blender | E35: ak-bl-0003 | G35: مضرب عاده 400 | I35: 350 | J35: 339.5 | K35: 399 | L35: 381.5 | M35: 399 | N35: H6*1.07 | O35: 363.265 | P35: 420.98 | Q35: 356.475 | R35: 420.98 | S35: 349.685 | T35: 437.955 | U35: 366.66
A36: 2024-01-11 | B36: AKAI EXP | C36: china | D36: cooker | E36: ak-co-0001 | G36: بلاطة 1 عين تركي | I36: 360 | J36: 349.2 | K36: 410.4 | L36: 392.4 | M36: 410.4 | N36: H6*1.07 | O36: 373.644 | P36: 433.008 | Q36: 366.66 | R36: 433.008 | S36: 359.676 | T36: 450.468 | U36: 377.136
A37: 2024-01-11 | B37: AKAI EXP | C37: china | D37: cooker | E37: ak-co-0002 | G37: بلاطة 2 عين تركي | I37: 370 | J37: 358.9 | K37: 421.8 | L37: 403.3 | M37: 421.8 | N37: H6*1.07 | O37: 384.023 | P37: 445.036 | Q37: 376.845 | R37: 445.036 | S37: 369.667 | T37: 462.981 | U37: 387.612
A38: 2024-01-11 | B38: Akai ind | C38: china | D38: heater | E38: ak-he-0001 | F38: heater 4 tupe 2970 | G38: دفاية 4 شمعة 2970 | I38: 380 | J38: 368.6 | K38: 433.2 | L38: 414.2 | M38: 433.2 | N38: H6*1.07 | O38: 394.402 | P38: 457.064 | Q38: 387.03 | R38: 457.064 | S38: 379.658 | T38: 475.494 | U38: 398.088
A39: 2024-01-11 | B39: Akai ind | C39: china | D39: heater | E39: ak-he-0002 | F39: heater 3 tupe 2820 | G39: دفاية 3 شمعة 2820 | I39: 390 | J39: 378.3 | K39: 444.6 | L39: 425.1 | M39: 444.6 | N39: H6*1.07 | O39: 404.781 | P39: 469.092 | Q39: 397.215 | R39: 469.092 | S39: 389.649 | T39: 488.007 | U39: 408.564
A40: 2024-01-11 | B40: Akai ind | C40: china | D40: heater | E40: ak-he-0003 | F40: heater 4 tupe N | G40: دفاية 4 شمعة عادة | I40: 400 | J40: 388 | K40: 456 | L40: 436 | M40: 456 | N40: H6*1.07 | O40: 415.16 | P40: 481.12 | Q40: 407.4 | R40: 481.12 | S40: 399.64 | T40: 500.52 | U40: 419.04
A41: 2024-01-11 | B41: Akai ind | C41: china | D41: heater | E41: ak-he-0004 | F41: heater 4 tupe R | G41: دفاية 4 شمعة ريموت | I41: 410 | J41: 397.7 | K41: 467.4 | L41: 446.9 | M41: 467.4 | N41: H6*1.07 | O41: 425.539 | P41: 493.148 | Q41: 417.585 | R41: 493.148 | S41: 409.631 | T41: 513.033 | U41: 429.516
A42: 2024-01-11 | B42: Akai ind | C42: china | D42: heater | E42: ak-he-0005 | F42: heater 4 tupe 2050 | G42: دفاية 4 شمعة وسط 2050 | I42: 420 | J42: 407.4 | K42: 478.8 | L42: 457.8 | M42: 478.8 | N42: H6*1.07 | O42: 435.918 | P42: 505.176 | Q42: 427.77 | R42: 505.176 | S42: 419.622 | T42: 525.546 | U42: 439.992
A43: 2024-01-11 | B43: Akai ind | C43: china | D43: v.cleaner | E43: ak-vc-0001 | F43: v.cleaner 2000 w | G43: مكنسة بطة 2000 وات | I43: 430 | J43: 417.1 | K43: 490.2 | L43: 468.7 | M43: 490.2 | N43: H6*1.07 | O43: 446.297 | P43: 517.204 | Q43: 437.955 | R43: 517.204 | S43: 429.613 | T43: 538.059 | U43: 450.468
A44: 2024-01-11 | B44: Akai ind | C44: turky | D44: v.cleaner | E44: ak-vc-0002 | F44: v.cleaner tank | G44: مكنسة برميل تركي | I44: 440 | J44: 426.8 | K44: 501.6 | L44: 479.6 | M44: 501.6 | N44: H6*1.07 | O44: 456.676 | P44: 529.232 | Q44: 448.14 | R44: 529.232 | S44: 439.604 | T44: 550.572 | U44: 460.944
A45: 2024-01-11 | B45: B.ONE | C45: china | D45: b.b.q | E45: ak-bq-0001 | F45: b.b.q 2200 | G45: شواية | I45: 450 | J45: 436.5 | K45: 513 | L45: 490.5 | M45: 513 | N45: H6*1.07 | O45: 467.055 | P45: 541.26 | Q45: 458.325 | R45: 541.26 | S45: 449.595 | T45: 563.085 | U45: 471.42
A46: 2024-01-11 | B46: Akai ind | C46: china | D46: EXHAUST FAN | E46: ak-ex-0001 | F46: EXHAUST FAN 30 | G46: شفاط 30سم شبكة | I46: 460 | J46: 446.2 | K46: 524.4 | L46: 501.4 | M46: 524.4 | N46: H6*1.07 | O46: 477.434 | P46: 553.288 | Q46: 468.51 | R46: 553.288 | S46: 459.586 | T46: 575.598 | U46: 481.896
A47: 2024-01-11 | B47: Akai ind | C47: china | D47: gas cooker | E47: ak-gc-0006 | F47: gas cooker 3 flame | G47: مسطح 3 عين استانلس | I47: 470 | J47: 455.9 | K47: 535.8 | L47: 512.3 | M47: 535.8 | N47: H6*1.07 | O47: 487.813 | P47: 565.316 | Q47: 478.695 | R47: 565.316 | S47: 469.577 | T47: 588.111 | U47: 492.372
A48: 2024-01-11 | B48: AKAI EXP | C48: china | D48: chopper | E48: ak-ch-0001 | F48: chopper 500 2 blade | G48: كويكي 2 سكينة 500 | I48: 480 | J48: 465.6 | K48: 547.2 | L48: 523.2 | M48: 547.2 | N48: H6*1.07 | O48: 498.192 | P48: 577.344 | Q48: 488.88 | R48: 577.344 | S48: 479.568 | T48: 600.624 | U48: 502.848
A49: 2024-01-11 | B49: AKAI EXP | C49: turky | D49: chopper | E49: ak-ch-0002 | G49: كبة 1 حوض 2 سكينة 100 | I49: 490 | J49: 475.3 | K49: 558.6 | L49: 534.1 | M49: 558.6 | N49: H6*1.07 | O49: 508.571 | P49: 589.372 | Q49: 499.065 | R49: 589.372 | S49: 489.559 | T49: 613.137 | U49: 513.324
A50: 2024-01-11 | B50: AKAI EXP | C50: turky | D50: chopper | E50: ak-ch-0003 | G50: كبة 2 حوض 2 سكينة 150 | I50: 500 | J50: 485 | K50: 570 | L50: 545 | M50: 570 | N50: H6*1.07 | O50: 518.95 | P50: 601.4 | Q50: 509.25 | R50: 601.4 | S50: 499.55 | T50: 625.65 | U50: 523.8
A51: 2024-01-11 | B51: Akai ind | C51: china | D51: Ceiling fan | E51: ak-cf-0001 | G51: مروحة سقف 56" بوصة | I51: 510 | J51: 494.7 | K51: 581.4 | L51: 555.9 | M51: 581.4 | N51: H6*1.07 | O51: 529.329 | P51: 613.428 | Q51: 519.435 | R51: 613.428 | S51: 509.541 | T51: 638.163 | U51: 534.276
A52: 2024-01-11 | B52: Akai ind | C52: china | D52: fans | E52: ak-fa-0001 | G52: مروحة حائط 18 بوصة عادة | I52: 520 | J52: 504.4 | K52: 592.8 | L52: 566.8 | M52: 592.8 | N52: H6*1.07 | O52: 539.708 | P52: 625.456 | Q52: 529.62 | R52: 625.456 | S52: 519.532 | T52: 650.676 | U52: 544.752
A53: 2024-01-11 | B53: Akai ind | C53: china | D53: fans | E53: ak-fa-0002 | G53: مروحة حائط 18 بوصة ريموت | I53: 530 | J53: 514.1 | K53: 604.2 | L53: 577.7 | M53: 604.2 | N53: H6*1.07 | O53: 550.087 | P53: 637.484 | Q53: 539.805 | R53: 637.484 | S53: 529.523 | T53: 663.189 | U53: 555.228
A54: 2024-01-11 | B54: Akai ind | C54: china | D54: fans | E54: ak-fa-0003 | G54: مروحة عمود 18 بوصة عادة | I54: 540 | J54: 523.8 | K54: 615.6 | L54: 588.6 | M54: 615.6 | N54: H6*1.07 | O54: 560.466 | P54: 649.512 | Q54: 549.99 | R54: 649.512 | S54: 539.514 | T54: 675.702 | U54: 565.704
A55: 2024-01-11 | B55: Akai ind | C55: china | D55: fans | E55: ak-fa-0004 | G55: مروحة عمود 18 بوصة ريموت | I55: 550 | J55: 533.5 | K55: 627 | L55: 599.5 | M55: 627 | N55: H6*1.07 | O55: 570.845 | P55: 661.54 | Q55: 560.175 | R55: 661.54 | S55: 549.505 | T55: 688.215 | U55: 576.18
A56: 2024-01-11 | B56: Akai ind | C56: china | D56: fans | E56: ak-fa-0005 | G56: مروحة حائط 20 بوصة عادة | I56: 560 | J56: 543.2 | K56: 638.4 | L56: 610.4 | M56: 638.4 | N56: H6*1.07 | O56: 581.224 | P56: 673.568 | Q56: 570.36 | R56: 673.568 | S56: 559.496 | T56: 700.728 | U56: 586.656
A57: 2024-01-11 | B57: Akai ind | C57: china | D57: fans | E57: ak-fa-0006 | G57: مروحة عمود 20 بوصة عادة | I57: 570 | J57: 552.9 | K57: 649.8 | L57: 621.3 | M57: 649.8 | N57: H6*1.07 | O57: 591.603 | P57: 685.596 | Q57: 580.545 | R57: 685.596 | S57: 569.487 | T57: 713.241 | U57: 597.132
A58: 2024-01-11 | B58: Akai ind | C58: china | D58: fans | E58: ak-fa-0007 | G58: مروحة حائط 18 عادة موزة | I58: 580 | J58: 562.6 | K58: 661.2 | L58: 632.2 | M58: 661.2 | N58: H6*1.07 | O58: 601.982 | P58: 697.624 | Q58: 590.73 | R58: 697.624 | S58: 579.478 | T58: 725.754 | U58: 607.608
A59: 2024-01-11 | B59: Akai ind | C59: china | D59: fans | E59: ak-fa-0008 | G59: مروحة عمود 18 عادة موزة | I59: 590 | J59: 572.3 | K59: 672.6 | L59: 643.1 | M59: 672.6 | N59: H6*1.07 | O59: 612.361 | P59: 709.652 | Q59: 600.915 | R59: 709.652 | S59: 589.469 | T59: 738.267 | U59: 618.084
A60: 2024-01-11 | B60: Akai ind | C60: china | D60: fans | E60: ak-fa-0009 | G60: مروحة كاريوكا 18 بوصة | I60: 600 | J60: 582 | K60: 684 | L60: 654 | M60: 684 | N60: H6*1.07 | O60: 622.74 | P60: 721.68 | Q60: 611.1 | R60: 721.68 | S60: 599.46 | T60: 750.78 | U60: 628.56
A61: 2024-01-11 | B61: B.ONE | C61: china | D61: killer | E61: ak-kl-0001 | G61: صاعق ناموس بلاستيك 60 سم | I61: 610 | J61: 591.7 | K61: 695.4 | L61: 664.9 | M61: 695.4 | N61: H6*1.07 | O61: 633.119 | P61: 733.708 | Q61: 621.285 | R61: 733.708 | S61: 609.451 | T61: 763.293 | U61: 639.036
A62: 2024-01-11 | B62: AKAI EXP | C62: egypt | D62: colman | E62: ak-cl-0001 | G62: كولمن 20 لتر | I62: 620 | J62: 601.4 | K62: 706.8 | L62: 675.8 | M62: 706.8 | N62: H6*1.07 | O62: 643.498 | P62: 745.736 | Q62: 631.47 | R62: 745.736 | S62: 619.442 | T62: 775.806 | U62: 649.512
A63: 2024-01-11 | B63: AKAI EXP | C63: china | D63: air cooler | E63: ak-ac-0001 | G63: تكييف صحراوي 75 لتر | I63: 630 | J63: 611.1 | K63: 718.2 | L63: 686.7 | M63: 718.2 | N63: H6*1.07 | O63: 653.877 | P63: 757.764 | Q63: 641.655 | R63: 757.764 | S63: 629.433 | T63: 788.319 | U63: 659.988
A64: 2024-01-13 | B64: AKAI Exp | C64: china | D64: t.v | E64: ak-tv-0001 | F64: t.v 32" | G64: شاشة 32 بوصة | I64: 70 | J64: 48.5 | K64: 57 | L64: 54.5 | M64: 57 | N64: H6*1.07 | O64: 51.895 | P64: 60.14 | Q64: 50.925 | R64: 60.14 | S64: 49.955 | T64: 62.565 | U64: 52.38
A65: 2024-01-13 | B65: AKAI Exp | C65: china | D65: t.v | E65: ak-tv-0002 | F65: t.v 43" | G65: شاشة 43 بوصة | I65: 80 | J65: 58.2 | K65: 68.4 | L65: 65.4 | M65: 68.4 | N65: H6*1.07 | O65: 62.274 | P65: 72.168 | Q65: 61.11 | R65: 72.168 | S65: 59.946 | T65: 75.078 | U65: 62.856
A66: 2024-01-13 | B66: B.ONE | C66: china | D66: washing | E66: ak-wa-0001 | F66: washing machin 10 kg | G66: غسالة 10 كيلو | I66: 70 | J66: 67.9 | K66: 79.8 | L66: 76.3 | M66: 79.8 | N66: H6*1.07 | O66: 72.653 | P66: 84.196 | Q66: 71.295 | R66: 84.196 | S66: 69.937 | T66: 87.591 | U66: 73.332
A67: 2024-01-13 | B67: AKAI Exp | C67: china | D67: Refrigerator | E67: ak-rf-0001 | F67: Refrigerator 4.5 | G67: ثلاجة مينى بار 4.5 | I67: 80 | J67: 77.6 | K67: 91.2 | L67: 87.2 | M67: 91.2 | N67: H6*1.07 | O67: 83.032 | P67: 96.224 | Q67: 81.48 | R67: 96.224 | S67: 79.928 | T67: 100.104 | U67: 83.808
A68: 2024-01-13 | B68: AKAI Exp | C68: china | D68: gas cooker | E68: ak-gc-0001 | F68: gas cooker 60*80 (107) | G68: بوتجاز 60*80 (107) | I68: 90 | J68: 87.3 | K68: 102.6 | L68: 98.1 | M68: 102.6 | N68: H6*1.07 | O68: 93.411 | P68: 108.252 | Q68: 91.665 | R68: 108.252 | S68: 89.919 | T68: 112.617 | U68: 94.284
A69: 2024-01-13 | B69: AKAI Exp | C69: china | D69: gas cooker | E69: ak-gc-0002 | F69: gas cooker 60*80 co (109) | G69: بوتجاز 60*80 نحاس (109) | I69: 100 | J69: 97 | K69: 114 | L69: 109 | M69: 114 | N69: H6*1.07 | O69: 103.79 | P69: 120.28 | Q69: 101.85 | R69: 120.28 | S69: 99.91 | T69: 125.13 | U69: 104.76
A70: 2024-01-13 | B70: AKAI Exp | C70: china | D70: gas cooker | E70: ak-gc-0003 | F70: gas cooker 60*80 & fan (110) | G70: بوتجاز 60*80 بالمروحة (110) | I70: 110 | J70: 106.7 | K70: 125.4 | L70: 119.9 | M70: 125.4 | N70: H6*1.07 | O70: 114.169 | P70: 132.308 | Q70: 112.035 | R70: 132.308 | S70: 109.901 | T70: 137.643 | U70: 115.236
A71: 2024-01-13 | B71: AKAI Exp | C71: china | D71: gas cooker | E71: ak-gc-0004 | F71: gas cooker 60*80 co (114) | G71: بوتجاز 60*90 نحاس (114) | I71: 120 | J71: 116.4 | K71: 136.8 | L71: 130.8 | M71: 136.8 | N71: H6*1.07 | O71: 124.548 | P71: 144.336 | Q71: 122.22 | R71: 144.336 | S71: 119.892 | T71: 150.156 | U71: 125.712
A72: 2024-01-13 | B72: AKAI Exp | C72: china | D72: gas cooker | E72: ak-gc-0005 | F72: gas cooker 60*80 & fan (115) | G72: بوتجاز 60*90 بالمروحة (115) | I72: 130 | J72: 126.1 | K72: 148.2 | L72: 141.7 | M72: 148.2 | N72: H6*1.07 | O72: 134.927 | P72: 156.364 | Q72: 132.405 | R72: 156.364 | S72: 129.883 | T72: 162.669 | U72: 136.188
A73: 2024-01-13 | B73: Akai ind | C73: china | D73: micro wave | E73: ak-mw-0001 | F73: micro wave 20 LT | G73: ميكروويف 20 لتر | I73: 140 | J73: 135.8 | K73: 159.6 | L73: 152.6 | M73: 159.6 | N73: H6*1.07 | O73: 145.306 | P73: 168.392 | Q73: 142.59 | R73: 168.392 | S73: 139.874 | T73: 175.182 | U73: 146.664
A74: 2024-01-13 | B74: Akai ind | C74: china | D74: micro wave | E74: ak-mw-0002 | F74: micro wave 25 LT | G74: ميكروويف 25 لتر | I74: 150 | J74: 145.5 | K74: 171 | L74: 163.5 | M74: 171 | N74: H6*1.07 | O74: 155.685 | P74: 180.42 | Q74: 152.775 | R74: 180.42 | S74: 149.865 | T74: 187.695 | U74: 157.14
A75: 2024-01-13 | B75: Akai ind | C75: china | D75: micro wave | E75: ak-mw-0003 | F75: micro wave 30 LT | G75: ميكروويف 30 لتر | I75: 160 | J75: 155.2 | K75: 182.4 | L75: 174.4 | M75: 182.4 | N75: H6*1.07 | O75: 166.064 | P75: 192.448 | Q75: 162.96 | R75: 192.448 | S75: 159.856 | T75: 200.208 | U75: 167.616
A76: 2024-01-13 | B76: B.ONE | C76: china | D76: air fryer | E76: ak-af-0001 | F76: air fryer 5.5 n (100) | G76: قلاية 5.5 لتر عادة 100 | I76: 170 | J76: 164.9 | K76: 193.8 | L76: 185.3 | M76: 193.8 | N76: H6*1.07 | O76: 176.443 | P76: 204.476 | Q76: 173.145 | R76: 204.476 | S76: 169.847 | T76: 212.721 | U76: 178.092
A77: 2024-01-13 | B77: B.ONE | C77: china | D77: air fryer | E77: ak-af-0002 | F77: air fryer 5.5 D (100) | G77: قلاية 5.5 لتر ديجيتال 100 | I77: 180 | J77: 174.6 | K77: 205.2 | L77: 196.2 | M77: 205.2 | N77: H6*1.07 | O77: 186.822 | P77: 216.504 | Q77: 183.33 | R77: 216.504 | S77: 179.838 | T77: 225.234 | U77: 188.568
A78: 2024-01-13 | B78: B.ONE | C78: china | D78: air fryer | E78: ak-af-0003 | F78: air fryer 5.5 n (200) | G78: قلاية 5.5 لتر عادة 200 | I78: 190 | J78: 184.3 | K78: 216.6 | L78: 207.1 | M78: 216.6 | N78: H6*1.07 | O78: 197.201 | P78: 228.532 | Q78: 193.515 | R78: 228.532 | S78: 189.829 | T78: 237.747 | U78: 199.044
A79: 2024-01-13 | B79: B.ONE | C79: china | D79: air fryer | E79: ak-af-0004 | F79: air fryer 5.5 D (200) | G79: قلاية 5.5 لتر ديجيتال 200 | I79: 200 | J79: 194 | K79: 228 | L79: 218 | M79: 228 | N79: H6*1.07 | O79: 207.58 | P79: 240.56 | Q79: 203.7 | R79: 240.56 | S79: 199.82 | T79: 250.26 | U79: 209.52
A80: 2024-01-13 | B80: Akai ind | C80: china | D80: iron | E80: ak-ir-0001 | F80: iron teflon | G80: مكواة تيفال | I80: 210 | J80: 203.7 | K80: 239.4 | L80: 228.9 | M80: 239.4 | N80: H6*1.07 | O80: 217.959 | P80: 252.588 | Q80: 213.885 | R80: 252.588 | S80: 209.811 | T80: 262.773 | U80: 219.996
A81: 2024-01-13 | B81: Akai ind | C81: china | D81: iron | E81: ak-ir-0002 | F81: iron ceramic | G81: مكواة سيراميك | I81: 220 | J81: 213.4 | K81: 250.8 | L81: 239.8 | M81: 250.8 | N81: H6*1.07 | O81: 228.338 | P81: 264.616 | Q81: 224.07 | R81: 264.616 | S81: 219.802 | T81: 275.286 | U81: 230.472
A82: 2024-01-13 | B82: Akai ind | C82: china | D82: yogurt | E82: ak-yg-0001 | F82: yogart n | G82: ماكينة زبادى عادة | I82: 230 | J82: 223.1 | K82: 262.2 | L82: 250.7 | M82: 262.2 | N82: H6*1.07 | O82: 238.717 | P82: 276.644 | Q82: 234.255 | R82: 276.644 | S82: 229.793 | T82: 287.799 | U82: 240.948
A83: 2024-01-13 | B83: Akai ind | C83: china | D83: kettle | E83: ak-kt-0001 | F83: kettle 1505 | G83: غلاية 1505 بلاستيك | I83: 240 | J83: 232.8 | K83: 273.6 | L83: 261.6 | M83: 273.6 | N83: H6*1.07 | O83: 249.096 | P83: 288.672 | Q83: 244.44 | R83: 288.672 | S83: 239.784 | T83: 300.312 | U83: 251.424
A84: 2024-01-13 | B84: Akai ind | C84: china | D84: kettle | E84: ak-kt-0002 | F84: kettle 1100 | G84: غلاية 1100 زجاج | I84: 250 | J84: 242.5 | K84: 285 | L84: 272.5 | M84: 285 | N84: H6*1.07 | O84: 259.475 | P84: 300.7 | Q84: 254.625 | R84: 300.7 | S84: 249.775 | T84: 312.825 | U84: 261.9
A85: 2024-01-13 | B85: Akai ind | C85: china | D85: oven | E85: ak-ov-0001 | F85: oven 45 LT | G85: فرن 45 لتر | I85: 260 | J85: 252.2 | K85: 296.4 | L85: 283.4 | M85: 296.4 | N85: H6*1.07 | O85: 269.854 | P85: 312.728 | Q85: 264.81 | R85: 312.728 | S85: 259.766 | T85: 325.338 | U85: 272.376
A86: 2024-01-13 | B86: Akai ind | C86: china | D86: oven | E86: ak-ov-0002 | F86: oven 55 LT | G86: فرن 55 لتر | I86: 270 | J86: 261.9 | K86: 307.8 | L86: 294.3 | M86: 307.8 | N86: H6*1.07 | O86: 280.233 | P86: 324.756 | Q86: 274.995 | R86: 324.756 | S86: 269.757 | T86: 337.851 | U86: 282.852
A87: 2024-01-13 | B87: Akai ind | C87: china | D87: oven | E87: ak-ov-0003 | F87: oven 70 LT | G87: فرن 70 لتر | I87: 280 | J87: 271.6 | K87: 319.2 | L87: 305.2 | M87: 319.2 | N87: H6*1.07 | O87: 290.612 | P87: 336.784 | Q87: 285.18 | R87: 336.784 | S87: 279.748 | T87: 350.364 | U87: 293.328
A88: 2024-01-13 | B88: B.ONE | C88: china | D88: water dispenser | E88: ak-wd-0001 | F88: water dispenser cab 2 tap | G88: مبرد 3 حنفية حافظة | I88: 290 | J88: 281.3 | K88: 330.6 | L88: 316.1 | M88: 330.6 | N88: H6*1.07 | O88: 300.991 | P88: 348.812 | Q88: 295.365 | R88: 348.812 | S88: 289.739 | T88: 362.877 | U88: 303.804
A89: 2024-01-13 | B89: B.ONE | C89: china | D89: water dispenser | E89: ak-wd-0002 | F89: water dispenser ref 3 tap | G89: مبرد 3 حنفية ثلاجة | I89: 300 | J89: 291 | K89: 342 | L89: 327 | M89: 342 | N89: H6*1.07 | O89: 311.37 | P89: 360.84 | Q89: 305.55 | R89: 360.84 | S89: 299.73 | T89: 375.39 | U89: 314.28
A90: 2024-01-13 | B90: B.ONE | C90: china | D90: water dispenser | E90: ak-wd-0003 | F90: water dispenser glass 2 tap | G90: مبرد 2 حنفية زجاج | I90: 310 | J90: 300.7 | K90: 353.4 | L90: 337.9 | M90: 353.4 | N90: H6*1.07 | O90: 321.749 | P90: 372.868 | Q90: 315.735 | R90: 372.868 | S90: 309.721 | T90: 387.903 | U90: 324.756
A91: 2024-01-13 | B91: Akai ind | C91: china | D91: oven | E91: ak-ov-0004 | F91: oven 40 LT 1 knobe | G91: فرن 40 لتر واحد زرار | I91: 320 | J91: 310.4 | K91: 364.8 | L91: 348.8 | M91: 364.8 | N91: H6*1.07 | O91: 332.128 | P91: 384.896 | Q91: 325.92 | R91: 384.896 | S91: 319.712 | T91: 400.416 | U91: 335.232
A92: 2024-01-13 | B92: AKAI Exp | C92: china | D92: blender | E92: ak-bl-0001 | G92: كيتشن تركي | I92: 330 | J92: 320.1 | K92: 376.2 | L92: 359.7 | M92: 376.2 | N92: H6*1.07 | O92: 342.507 | P92: 396.924 | Q92: 336.105 | R92: 396.924 | S92: 329.703 | T92: 412.929 | U92: 345.708
A93: 2024-01-13 | B93: Akai ind | C93: china | D93: blender | E93: ak-bl-0002 | G93: خلاط 400 | I93: 340 | J93: 329.8 | K93: 387.6 | L93: 370.6 | M93: 387.6 | N93: H6*1.07 | O93: 352.886 | P93: 408.952 | Q93: 346.29 | R93: 408.952 | S93: 339.694 | T93: 425.442 | U93: 356.184
A94: 2024-01-13 | B94: Akai ind | C94: china | D94: blender | E94: ak-bl-0003 | G94: مضرب عاده 400 | I94: 350 | J94: 339.5 | K94: 399 | L94: 381.5 | M94: 399 | N94: H6*1.07 | O94: 363.265 | P94: 420.98 | Q94: 356.475 | R94: 420.98 | S94: 349.685 | T94: 437.955 | U94: 366.66
A95: 2024-01-13 | B95: AKAI EXP | C95: china | D95: cooker | E95: ak-co-0001 | G95: بلاطة 1 عين تركي | I95: 360 | J95: 349.2 | K95: 410.4 | L95: 392.4 | M95: 410.4 | N95: H6*1.07 | O95: 373.644 | P95: 433.008 | Q95: 366.66 | R95: 433.008 | S95: 359.676 | T95: 450.468 | U95: 377.136
A96: 2024-01-13 | B96: AKAI EXP | C96: china | D96: cooker | E96: ak-co-0002 | G96: بلاطة 2 عين تركي | I96: 370 | J96: 358.9 | K96: 421.8 | L96: 403.3 | M96: 421.8 | N96: H6*1.07 | O96: 384.023 | P96: 445.036 | Q96: 376.845 | R96: 445.036 | S96: 369.667 | T96: 462.981 | U96: 387.612
A97: 2024-01-13 | B97: Akai ind | C97: china | D97: heater | E97: ak-he-0001 | F97: heater 4 tupe 2970 | G97: دفاية 4 شمعة 2970 | I97: 380 | J97: 368.6 | K97: 433.2 | L97: 414.2 | M97: 433.2 | N97: H6*1.07 | O97: 394.402 | P97: 457.064 | Q97: 387.03 | R97: 457.064 | S97: 379.658 | T97: 475.494 | U97: 398.088
A98: 2024-01-13 | B98: Akai ind | C98: china | D98: heater | E98: ak-he-0002 | F98: heater 3 tupe 2820 | G98: دفاية 3 شمعة 2820 | I98: 390 | J98: 378.3 | K98: 444.6 | L98: 425.1 | M98: 444.6 | N98: H6*1.07 | O98: 404.781 | P98: 469.092 | Q98: 397.215 | R98: 469.092 | S98: 389.649 | T98: 488.007 | U98: 408.564
A99: 2024-01-13 | B99: Akai ind | C99: china | D99: heater | E99: ak-he-0003 | F99: heater 4 tupe N | G99: دفاية 4 شمعة عادة | I99: 400 | J99: 388 | K99: 456 | L99: 436 | M99: 456 | N99: H6*1.07 | O99: 415.16 | P99: 481.12 | Q99: 407.4 | R99: 481.12 | S99: 399.64 | T99: 500.52 | U99: 419.04
A100: 2024-01-13 | B100: Akai ind | C100: china | D100: heater | E100: ak-he-0004 | F100: heater 4 tupe R | G100: دفاية 4 شمعة ريموت | I100: 410 | J100: 397.7 | K100: 467.4 | L100: 446.9 | M100: 467.4 | N100: H6*1.07 | O100: 425.539 | P100: 493.148 | Q100: 417.585 | R100: 493.148 | S100: 409.631 | T100: 513.033 | U100: 429.516
A101: 2024-01-13 | B101: Akai ind | C101: china | D101: heater | E101: ak-he-0005 | F101: heater 4 tupe 2050 | G101: دفاية 4 شمعة وسط 2050 | I101: 420 | J101: 407.4 | K101: 478.8 | L101: 457.8 | M101: 478.8 | N101: H6*1.07 | O101: 435.918 | P101: 505.176 | Q101: 427.77 | R101: 505.176 | S101: 419.622 | T101: 525.546 | U101: 439.992
A102: 2024-01-13 | B102: Akai ind | C102: china | D102: v.cleaner | E102: ak-vc-0001 | F102: v.cleaner 2000 w | G102: مكنسة بطة 2000 وات | I102: 430 | J102: 417.1 | K102: 490.2 | L102: 468.7 | M102: 490.2 | N102: H6*1.07 | O102: 446.297 | P102: 517.204 | Q102: 437.955 | R102: 517.204 | S102: 429.613 | T102: 538.059 | U102: 450.468
A103: 2024-01-13 | B103: Akai ind | C103: turky | D103: v.cleaner | E103: ak-vc-0002 | F103: v.cleaner tank | G103: مكنسة برميل تركي | I103: 440 | J103: 426.8 | K103: 501.6 | L103: 479.6 | M103: 501.6 | N103: H6*1.07 | O103: 456.676 | P103: 529.232 | Q103: 448.14 | R103: 529.232 | S103: 439.604 | T103: 550.572 | U103: 460.944
A104: 2024-01-13 | B104: B.ONE | C104: china | D104: b.b.q | E104: ak-bq-0001 | F104: b.b.q 2200 | G104: شواية | I104: 450 | J104: 436.5 | K104: 513 | L104: 490.5 | M104: 513 | N104: H6*1.07 | O104: 467.055 | P104: 541.26 | Q104: 458.325 | R104: 541.26 | S104: 449.595 | T104: 563.085 | U104: 471.42
A105: 2024-01-13 | B105: Akai ind | C105: china | D105: EXHAUST FAN | E105: ak-ex-0001 | F105: EXHAUST FAN 30 | G105: شفاط 30سم شبكة | I105: 460 | J105: 446.2 | K105: 524.4 | L105: 501.4 | M105: 524.4 | N105: H6*1.07 | O105: 477.434 | P105: 553.288 | Q105: 468.51 | R105: 553.288 | S105: 459.586 | T105: 575.598 | U105: 481.896
A106: 2024-01-13 | B106: Akai ind | C106: china | D106: gas cooker | E106: ak-gc-0006 | F106: gas cooker 3 flame | G106: مسطح 3 عين استانلس | I106: 470 | J106: 455.9 | K106: 535.8 | L106: 512.3 | M106: 535.8 | N106: H6*1.07 | O106: 487.813 | P106: 565.316 | Q106: 478.695 | R106: 565.316 | S106: 469.577 | T106: 588.111 | U106: 492.372
A107: 2024-01-13 | B107: AKAI EXP | C107: china | D107: chopper | E107: ak-ch-0001 | F107: chopper 500 2 blade | G107: كويكي 2 سكينة 500 | I107: 480 | J107: 465.6 | K107: 547.2 | L107: 523.2 | M107: 547.2 | N107: H6*1.07 | O107: 498.192 | P107: 577.344 | Q107: 488.88 | R107: 577.344 | S107: 479.568 | T107: 600.624 | U107: 502.848
A108: 2024-01-13 | B108: AKAI EXP | C108: turky | D108: chopper | E108: ak-ch-0002 | G108: كبة 1 حوض 2 سكينة 100 | I108: 490 | J108: 475.3 | K108: 558.6 | L108: 534.1 | M108: 558.6 | N108: H6*1.07 | O108: 508.571 | P108: 589.372 | Q108: 499.065 | R108: 589.372 | S108: 489.559 | T108: 613.137 | U108: 513.324
A109: 2024-01-13 | B109: AKAI EXP | C109: turky | D109: chopper | E109: ak-ch-0003 | G109: كبة 2 حوض 2 سكينة 150 | I109: 500 | J109: 485 | K109: 570 | L109: 545 | M109: 570 | N109: H6*1.07 | O109: 518.95 | P109: 601.4 | Q109: 509.25 | R109: 601.4 | S109: 499.55 | T109: 625.65 | U109: 523.8
A110: 2024-01-13 | B110: Akai ind | C110: china | D110: Ceiling fan | E110: ak-cf-0001 | G110: مروحة سقف 56" بوصة | I110: 510 | J110: 494.7 | K110: 581.4 | L110: 555.9 | M110: 581.4 | N110: H6*1.07 | O110: 529.329 | P110: 613.428 | Q110: 519.435 | R110: 613.428 | S110: 509.541 | T110: 638.163 | U110: 534.276
A111: 2024-01-13 | B111: Akai ind | C111: china | D111: fans | E111: ak-fa-0001 | G111: مروحة حائط 18 بوصة عادة | I111: 520 | J111: 504.4 | K111: 592.8 | L111: 566.8 | M111: 592.8 | N111: H6*1.07 | O111: 539.708 | P111: 625.456 | Q111: 529.62 | R111: 625.456 | S111: 519.532 | T111: 650.676 | U111: 544.752
A112: 2024-01-13 | B112: Akai ind | C112: china | D112: fans | E112: ak-fa-0002 | G112: مروحة حائط 18 بوصة ريموت | I112: 530 | J112: 514.1 | K112: 604.2 | L112: 577.7 | M112: 604.2 | N112: H6*1.07 | O112: 550.087 | P112: 637.484 | Q112: 539.805 | R112: 637.484 | S112: 529.523 | T112: 663.189 | U112: 555.228
A113: 2024-01-13 | B113: Akai ind | C113: china | D113: fans | E113: ak-fa-0003 | G113: مروحة عمود 18 بوصة عادة | I113: 540 | J113: 523.8 | K113: 615.6 | L113: 588.6 | M113: 615.6 | N113: H6*1.07 | O113: 560.466 | P113: 649.512 | Q113: 549.99 | R113: 649.512 | S113: 539.514 | T113: 675.702 | U113: 565.704
A114: 2024-01-13 | B114: Akai ind | C114: china | D114: fans | E114: ak-fa-0004 | G114: مروحة عمود 18 بوصة ريموت | I114: 550 | J114: 533.5 | K114: 627 | L114: 599.5 | M114: 627 | N114: H6*1.07 | O114: 570.845 | P114: 661.54 | Q114: 560.175 | R114: 661.54 | S114: 549.505 | T114: 688.215 | U114: 576.18
A115: 2024-01-13 | B115: Akai ind | C115: china | D115: fans | E115: ak-fa-0005 | G115: مروحة حائط 20 بوصة عادة | I115: 560 | J115: 543.2 | K115: 638.4 | L115: 610.4 | M115: 638.4 | N115: H6*1.07 | O115: 581.224 | P115: 673.568 | Q115: 570.36 | R115: 673.568 | S115: 559.496 | T115: 700.728 | U115: 586.656
A116: 2024-01-13 | B116: Akai ind | C116: china | D116: fans | E116: ak-fa-0006 | G116: مروحة عمود 20 بوصة عادة | I116: 570 | J116: 552.9 | K116: 649.8 | L116: 621.3 | M116: 649.8 | N116: H6*1.07 | O116: 591.603 | P116: 685.596 | Q116: 580.545 | R116: 685.596 | S116: 569.487 | T116: 713.241 | U116: 597.132
A117: 2024-01-13 | B117: Akai ind | C117: china | D117: fans | E117: ak-fa-0007 | G117: مروحة حائط 18 عادة موزة | I117: 580 | J117: 562.6 | K117: 661.2 | L117: 632.2 | M117: 661.2 | N117: H6*1.07 | O117: 601.982 | P117: 697.624 | Q117: 590.73 | R117: 697.624 | S117: 579.478 | T117: 725.754 | U117: 607.608
A118: 2024-01-13 | B118: Akai ind | C118: china | D118: fans | E118: ak-fa-0008 | G118: مروحة عمود 18 عادة موزة | I118: 590 | J118: 572.3 | K118: 672.6 | L118: 643.1 | M118: 672.6 | N118: H6*1.07 | O118: 612.361 | P118: 709.652 | Q118: 600.915 | R118: 709.652 | S118: 589.469 | T118: 738.267 | U118: 618.084
A119: 2024-01-13 | B119: Akai ind | C119: china | D119: fans | E119: ak-fa-0009 | G119: مروحة كاريوكا 18 بوصة | I119: 600 | J119: 582 | K119: 684 | L119: 654 | M119: 684 | N119: H6*1.07 | O119: 622.74 | P119: 721.68 | Q119: 611.1 | R119: 721.68 | S119: 599.46 | T119: 750.78 | U119: 628.56
A120: 2024-01-13 | B120: B.ONE | C120: china | D120: killer | E120: ak-kl-0001 | G120: صاعق ناموس بلاستيك 60 سم | I120: 610 | J120: 591.7 | K120: 695.4 | L120: 664.9 | M120: 695.4 | N120: H6*1.07 | O120: 633.119 | P120: 733.708 | Q120: 621.285 | R120: 733.708 | S120: 609.451 | T120: 763.293 | U120: 639.036
A121: 2024-01-13 | B121: AKAI EXP | C121: egypt | D121: colman | E121: ak-cl-0001 | G121: كولمن 20 لتر | I121: 620 | J121: 601.4 | K121: 706.8 | L121: 675.8 | M121: 706.8 | N121: H6*1.07 | O121: 643.498 | P121: 745.736 | Q121: 631.47 | R121: 745.736 | S121: 619.442 | T121: 775.806 | U121: 649.512
A122: 2024-01-13 | B122: AKAI EXP | C122: china | D122: air cooler | E122: ak-ac-0001 | G122: تكييف صحراوي 75 لتر | I122: 630 | J122: 611.1 | K122: 718.2 | L122: 686.7 | M122: 718.2 | N122: H6*1.07 | O122: 653.877 | P122: 757.764 | Q122: 641.655 | R122: 757.764 | S122: 629.433 | T122: 788.319 | U122: 659.988
A123: 2024-01-15 | B123: AKAI Exp | C123: china | D123: t.v | E123: ak-tv-0001 | F123: t.v 32" | G123: شاشة 32 بوصة | I123: 90 | J123: =I123*0.97 -> 87.3 | K123: =I123*1.14 -> 102.6 | L123: =I123*1.09 -> 98.1 | M123: =I123*1.14 -> 102.6 | N123: H6*1.07 | O123: =J123*1.07 -> 93.411 | P123: =J123*(1+0.05+0.09+0.1) -> 108.252 | Q123: =J123*(1+0.05) -> 91.665 | R123: =J123*(1+0.05+0.09+0.1) -> 108.252 | S123: =J123*(1+0.03) -> 89.919 | T123: =J123*(1+0.05+0.14+0.1) -> 112.617 | U123: =J123*(1+0.03+0.05) -> 94.284
A124: 2024-01-15 | B124: AKAI Exp | C124: china | D124: t.v | E124: ak-tv-0002 | F124: t.v 43" | G124: شاشة 43 بوصة | I124: 100 | J124: 97 | K124: 114 | L124: 109 | M124: 114 | N124: H6*1.07 | O124: 103.79 | P124: 120.28 | Q124: 101.85 | R124: 120.28 | S124: 99.91 | T124: 125.13 | U124: 104.76
A125: 2024-01-15 | B125: B.ONE | C125: china | D125: washing | E125: ak-wa-0001 | F125: washing machin 10 kg | G125: غسالة 10 كيلو | I125: 70 | J125: 67.9 | K125: 79.8 | L125: 76.3 | M125: 79.8 | N125: H6*1.07 | O125: 72.653 | P125: 84.196 | Q125: 71.295 | R125: 84.196 | S125: 69.937 | T125: 87.591 | U125: 73.332
A126: 2024-01-15 | B126: AKAI Exp | C126: china | D126: Refrigerator | E126: ak-rf-0001 | F126: Refrigerator 4.5 | G126: ثلاجة مينى بار 4.5 | I126: 80 | J126: 77.6 | K126: 91.2 | L126: 87.2 | M126: 91.2 | N126: H6*1.07 | O126: 83.032 | P126: 96.224 | Q126: 81.48 | R126: 96.224 | S126: 79.928 | T126: 100.104 | U126: 83.808
A127: 2024-01-15 | B127: AKAI Exp | C127: china | D127: gas cooker | E127: ak-gc-0001 | F127: gas cooker 60*80 (107) | G127: بوتجاز 60*80 (107) | I127: 90 | J127: 87.3 | K127: 102.6 | L127: 98.1 | M127: 102.6 | N127: H6*1.07 | O127: 93.411 | P127: 108.252 | Q127: 91.665 | R127: 108.252 | S127: 89.919 | T127: 112.617 | U127: 94.284
A128: 2024-01-15 | B128: AKAI Exp | C128: china | D128: gas cooker | E128: ak-gc-0002 | F128: gas cooker 60*80 co (109) | G128: بوتجاز 60*80 نحاس (109) | I128: 100 | J128: 97 | K128: 114 | L128: 109 | M128: 114 | N128: H6*1.07 | O128: 103.79 | P128: 120.28 | Q128: 101.85 | R128: 120.28 | S128: 99.91 | T128: 125.13 | U128: 104.76
A129: 2024-01-15 | B129: AKAI Exp | C129: china | D129: gas cooker | E129: ak-gc-0003 | F129: gas cooker 60*80 & fan (110) | G129: بوتجاز 60*80 بالمروحة (110) | I129: 110 | J129: 106.7 | K129: 125.4 | L129: 119.9 | M129: 125.4 | N129: H6*1.07 | O129: 114.169 | P129: 132.308 | Q129: 112.035 | R129: 132.308 | S129: 109.901 | T129: 137.643 | U129: 115.236
A130: 2024-01-15 | B130: AKAI Exp | C130: china | D130: gas cooker | E130: ak-gc-0004 | F130: gas cooker 60*80 co (114) | G130: بوتجاز 60*90 نحاس (114) | I130: 120 | J130: 116.4 | K130: 136.8 | L130: 130.8 | M130: 136.8 | N130: H6*1.07 | O130: 124.548 | P130: 144.336 | Q130: 122.22 | R130: 144.336 | S130: 119.892 | T130: 150.156 | U130: 125.712
A131: 2024-01-15 | B131: AKAI Exp | C131: china | D131: gas cooker | E131: ak-gc-0005 | F131: gas cooker 60*80 & fan (115) | G131: بوتجاز 60*90 بالمروحة (115) | I131: 130 | J131: 126.1 | K131: 148.2 | L131: 141.7 | M131: 148.2 | N131: H6*1.07 | O131: 134.927 | P131: 156.364 | Q131: 132.405 | R131: 156.364 | S131: 129.883 | T131: 162.669 | U131: 136.188
A132: 2024-01-15 | B132: Akai ind | C132: china | D132: micro wave | E132: ak-mw-0001 | F132: micro wave 20 LT | G132: ميكروويف 20 لتر | I132: 140 | J132: 135.8 | K132: 159.6 | L132: 152.6 | M132: 159.6 | N132: H6*1.07 | O132: 145.306 | P132: 168.392 | Q132: 142.59 | R132: 168.392 | S132: 139.874 | T132: 175.182 | U132: 146.664
A133: 2024-01-15 | B133: Akai ind | C133: china | D133: micro wave | E133: ak-mw-0002 | F133: micro wave 25 LT | G133: ميكروويف 25 لتر | I133: 150 | J133: 145.5 | K133: 171 | L133: 163.5 | M133: 171 | N133: H6*1.07 | O133: 155.685 | P133: 180.42 | Q133: 152.775 | R133: 180.42 | S133: 149.865 | T133: 187.695 | U133: 157.14
A134: 2024-01-15 | B134: Akai ind | C134: china | D134: micro wave | E134: ak-mw-0003 | F134: micro wave 30 LT | G134: ميكروويف 30 لتر | I134: 160 | J134: 155.2 | K134: 182.4 | L134: 174.4 | M134: 182.4 | N134: H6*1.07 | O134: 166.064 | P134: 192.448 | Q134: 162.96 | R134: 192.448 | S134: 159.856 | T134: 200.208 | U134: 167.616
A135: 2024-01-15 | B135: B.ONE | C135: china | D135: air fryer | E135: ak-af-0001 | F135: air fryer 5.5 n (100) | G135: قلاية 5.5 لتر عادة 100 | I135: 170 | J135: 164.9 | K135: 193.8 | L135: 185.3 | M135: 193.8 | N135: H6*1.07 | O135: 176.443 | P135: 204.476 | Q135: 173.145 | R135: 204.476 | S135: 169.847 | T135: 212.721 | U135: 178.092
A136: 2024-01-15 | B136: B.ONE | C136: china | D136: air fryer | E136: ak-af-0002 | F136: air fryer 5.5 D (100) | G136: قلاية 5.5 لتر ديجيتال 100 | I136: 180 | J136: 174.6 | K136: 205.2 | L136: 196.2 | M136: 205.2 | N136: H6*1.07 | O136: 186.822 | P136: 216.504 | Q136: 183.33 | R136: 216.504 | S136: 179.838 | T136: 225.234 | U136: 188.568
A137: 2024-01-15 | B137: B.ONE | C137: china | D137: air fryer | E137: ak-af-0003 | F137: air fryer 5.5 n (200) | G137: قلاية 5.5 لتر عادة 200 | I137: 190 | J137: 184.3 | K137: 216.6 | L137: 207.1 | M137: 216.6 | N137: H6*1.07 | O137: 197.201 | P137: 228.532 | Q137: 193.515 | R137: 228.532 | S137: 189.829 | T137: 237.747 | U137: 199.044
A138: 2024-01-15 | B138: B.ONE | C138: china | D138: air fryer | E138: ak-af-0004 | F138: air fryer 5.5 D (200) | G138: قلاية 5.5 لتر ديجيتال 200 | I138: 200 | J138: 194 | K138: 228 | L138: 218 | M138: 228 | N138: H6*1.07 | O138: 207.58 | P138: 240.56 | Q138: 203.7 | R138: 240.56 | S138: 199.82 | T138: 250.26 | U138: 209.52
A139: 2024-01-15 | B139: Akai ind | C139: china | D139: iron | E139: ak-ir-0001 | F139: iron teflon | G139: مكواة تيفال | I139: 210 | J139: 203.7 | K139: 239.4 | L139: 228.9 | M139: 239.4 | N139: H6*1.07 | O139: 217.959 | P139: 252.588 | Q139: 213.885 | R139: 252.588 | S139: 209.811 | T139: 262.773 | U139: 219.996
A140: 2024-01-15 | B140: Akai ind | C140: china | D140: iron | E140: ak-ir-0002 | F140: iron ceramic | G140: مكواة سيراميك | I140: 220 | J140: 213.4 | K140: 250.8 | L140: 239.8 | M140: 250.8 | N140: H6*1.07 | O140: 228.338 | P140: 264.616 | Q140: 224.07 | R140: 264.616 | S140: 219.802 | T140: 275.286 | U140: 230.472
A141: 2024-01-15 | B141: Akai ind | C141: china | D141: yogurt | E141: ak-yg-0001 | F141: yogart n | G141: ماكينة زبادى عادة | I141: 230 | J141: 223.1 | K141: 262.2 | L141: 250.7 | M141: 262.2 | N141: H6*1.07 | O141: 238.717 | P141: 276.644 | Q141: 234.255 | R141: 276.644 | S141: 229.793 | T141: 287.799 | U141: 240.948
A142: 2024-01-15 | B142: Akai ind | C142: china | D142: kettle | E142: ak-kt-0001 | F142: kettle 1505 | G142: غلاية 1505 بلاستيك | I142: 240 | J142: 232.8 | K142: 273.6 | L142: 261.6 | M142: 273.6 | N142: H6*1.07 | O142: 249.096 | P142: 288.672 | Q142: 244.44 | R142: 288.672 | S142: 239.784 | T142: 300.312 | U142: 251.424
A143: 2024-01-15 | B143: Akai ind | C143: china | D143: kettle | E143: ak-kt-0002 | F143: kettle 1100 | G143: غلاية 1100 زجاج | I143: 250 | J143: 242.5 | K143: 285 | L143: 272.5 | M143: 285 | N143: H6*1.07 | O143: 259.475 | P143: 300.7 | Q143: 254.625 | R143: 300.7 | S143: 249.775 | T143: 312.825 | U143: 261.9
A144: 2024-01-15 | B144: Akai ind | C144: china | D144: oven | E144: ak-ov-0001 | F144: oven 45 LT | G144: فرن 45 لتر | I144: 260 | J144: 252.2 | K144: 296.4 | L144: 283.4 | M144: 296.4 | N144: H6*1.07 | O144: 269.854 | P144: 312.728 | Q144: 264.81 | R144: 312.728 | S144: 259.766 | T144: 325.338 | U144: 272.376
A145: 2024-01-15 | B145: Akai ind | C145: china | D145: oven | E145: ak-ov-0002 | F145: oven 55 LT | G145: فرن 55 لتر | I145: 270 | J145: 261.9 | K145: 307.8 | L145: 294.3 | M145: 307.8 | N145: H6*1.07 | O145: 280.233 | P145: 324.756 | Q145: 274.995 | R145: 324.756 | S145: 269.757 | T145: 337.851 | U145: 282.852
A146: 2024-01-15 | B146: Akai ind | C146: china | D146: oven | E146: ak-ov-0003 | F146: oven 70 LT | G146: فرن 70 لتر | I146: 280 | J146: 271.6 | K146: 319.2 | L146: 305.2 | M146: 319.2 | N146: H6*1.07 | O146: 290.612 | P146: 336.784 | Q146: 285.18 | R146: 336.784 | S146: 279.748 | T146: 350.364 | U146: 293.328
A147: 2024-01-15 | B147: B.ONE | C147: china | D147: water dispenser | E147: ak-wd-0001 | F147: water dispenser cab 2 tap | G147: مبرد 3 حنفية حافظة | I147: 290 | J147: 281.3 | K147: 330.6 | L147: 316.1 | M147: 330.6 | N147: H6*1.07 | O147: 300.991 | P147: 348.812 | Q147: 295.365 | R147: 348.812 | S147: 289.739 | T147: 362.877 | U147: 303.804
A148: 2024-01-15 | B148: B.ONE | C148: china | D148: water dispenser | E148: ak-wd-0002 | F148: water dispenser ref 3 tap | G148: مبرد 3 حنفية ثلاجة | I148: 300 | J148: 291 | K148: 342 | L148: 327 | M148: 342 | N148: H6*1.07 | O148: 311.37 | P148: 360.84 | Q148: 305.55 | R148: 360.84 | S148: 299.73 | T148: 375.39 | U148: 314.28
A149: 2024-01-15 | B149: B.ONE | C149: china | D149: water dispenser | E149: ak-wd-0003 | F149: water dispenser glass 2 tap | G149: مبرد 2 حنفية زجاج | I149: 310 | J149: 300.7 | K149: 353.4 | L149: 337.9 | M149: 353.4 | N149: H6*1.07 | O149: 321.749 | P149: 372.868 | Q149: 315.735 | R149: 372.868 | S149: 309.721 | T149: 387.903 | U149: 324.756
A150: 2024-01-15 | B150: Akai ind | C150: china | D150: oven | E150: ak-ov-0004 | F150: oven 40 LT 1 knobe | G150: فرن 40 لتر واحد زرار | I150: 320 | J150: 310.4 | K150: 364.8 | L150: 348.8 | M150: 364.8 | N150: H6*1.07 | O150: 332.128 | P150: 384.896 | Q150: 325.92 | R150: 384.896 | S150: 319.712 | T150: 400.416 | U150: 335.232
A151: 2024-01-15 | B151: AKAI Exp | C151: china | D151: blender | E151: ak-bl-0001 | G151: كيتشن تركي | I151: 330 | J151: 320.1 | K151: 376.2 | L151: 359.7 | M151: 376.2 | N151: H6*1.07 | O151: 342.507 | P151: 396.924 | Q151: 336.105 | R151: 396.924 | S151: 329.703 | T151: 412.929 | U151: 345.708
A152: 2024-01-15 | B152: Akai ind | C152: china | D152: blender | E152: ak-bl-0002 | G152: خلاط 400 | I152: 340 | J152: 329.8 | K152: 387.6 | L152: 370.6 | M152: 387.6 | N152: H6*1.07 | O152: 352.886 | P152: 408.952 | Q152: 346.29 | R152: 408.952 | S152: 339.694 | T152: 425.442 | U152: 356.184
A153: 2024-01-15 | B153: Akai ind | C153: china | D153: blender | E153: ak-bl-0003 | G153: مضرب عاده 400 | I153: 350 | J153: 339.5 | K153: 399 | L153: 381.5 | M153: 399 | N153: H6*1.07 | O153: 363.265 | P153: 420.98 | Q153: 356.475 | R153: 420.98 | S153: 349.685 | T153: 437.955 | U153: 366.66
A154: 2024-01-15 | B154: AKAI EXP | C154: china | D154: cooker | E154: ak-co-0001 | G154: بلاطة 1 عين تركي | I154: 360 | J154: 349.2 | K154: 410.4 | L154: 392.4 | M154: 410.4 | N154: H6*1.07 | O154: 373.644 | P154: 433.008 | Q154: 366.66 | R154: 433.008 | S154: 359.676 | T154: 450.468 | U154: 377.136
A155: 2024-01-15 | B155: AKAI EXP | C155: china | D155: cooker | E155: ak-co-0002 | G155: بلاطة 2 عين تركي | I155: 370 | J155: 358.9 | K155: 421.8 | L155: 403.3 | M155: 421.8 | N155: H6*1.07 | O155: 384.023 | P155: 445.036 | Q155: 376.845 | R155: 445.036 | S155: 369.667 | T155: 462.981 | U155: 387.612
A156: 2024-01-15 | B156: Akai ind | C156: china | D156: heater | E156: ak-he-0001 | F156: heater 4 tupe 2970 | G156: دفاية 4 شمعة 2970 | I156: 380 | J156: 368.6 | K156: 433.2 | L156: 414.2 | M156: 433.2 | N156: H6*1.07 | O156: 394.402 | P156: 457.064 | Q156: 387.03 | R156: 457.064 | S156: 379.658 | T156: 475.494 | U156: 398.088
A157: 2024-01-15 | B157: Akai ind | C157: china | D157: heater | E157: ak-he-0002 | F157: heater 3 tupe 2820 | G157: دفاية 3 شمعة 2820 | I157: 390 | J157: 378.3 | K157: 444.6 | L157: 425.1 | M157: 444.6 | N157: H6*1.07 | O157: 404.781 | P157: 469.092 | Q157: 397.215 | R157: 469.092 | S157: 389.649 | T157: 488.007 | U157: 408.564
A158: 2024-01-15 | B158: Akai ind | C158: china | D158: heater | E158: ak-he-0003 | F158: heater 4 tupe N | G158: دفاية 4 شمعة عادة | I158: 400 | J158: 388 | K158: 456 | L158: 436 | M158: 456 | N158: H6*1.07 | O158: 415.16 | P158: 481.12 | Q158: 407.4 | R158: 481.12 | S158: 399.64 | T158: 500.52 | U158: 419.04
A159: 2024-01-15 | B159: Akai ind | C159: china | D159: heater | E159: ak-he-0004 | F159: heater 4 tupe R | G159: دفاية 4 شمعة ريموت | I159: 410 | J159: 397.7 | K159: 467.4 | L159: 446.9 | M159: 467.4 | N159: H6*1.07 | O159: 425.539 | P159: 493.148 | Q159: 417.585 | R159: 493.148 | S159: 409.631 | T159: 513.033 | U159: 429.516
A160: 2024-01-15 | B160: Akai ind | C160: china | D160: heater | E160: ak-he-0005 | F160: heater 4 tupe 2050 | G160: دفاية 4 شمعة وسط 2050 | I160: 420 | J160: 407.4 | K160: 478.8 | L160: 457.8 | M160: 478.8 | N160: H6*1.07 | O160: 435.918 | P160: 505.176 | Q160: 427.77 | R160: 505.176 | S160: 419.622 | T160: 525.546 | U160: 439.992
A161: 2024-01-15 | B161: Akai ind | C161: china | D161: v.cleaner | E161: ak-vc-0001 | F161: v.cleaner 2000 w | G161: مكنسة بطة 2000 وات | I161: 430 | J161: 417.1 | K161: 490.2 | L161: 468.7 | M161: 490.2 | N161: H6*1.07 | O161: 446.297 | P161: 517.204 | Q161: 437.955 | R161: 517.204 | S161: 429.613 | T161: 538.059 | U161: 450.468
A162: 2024-01-15 | B162: Akai ind | C162: turky | D162: v.cleaner | E162: ak-vc-0002 | F162: v.cleaner tank | G162: مكنسة برميل تركي | I162: 440 | J162: 426.8 | K162: 501.6 | L162: 479.6 | M162: 501.6 | N162: H6*1.07 | O162: 456.676 | P162: 529.232 | Q162: 448.14 | R162: 529.232 | S162: 439.604 | T162: 550.572 | U162: 460.944
A163: 2024-01-15 | B163: B.ONE | C163: china | D163: b.b.q | E163: ak-bq-0001 | F163: b.b.q 2200 | G163: شواية | I163: 450 | J163: 436.5 | K163: 513 | L163: 490.5 | M163: 513 | N163: H6*1.07 | O163: 467.055 | P163: 541.26 | Q163: 458.325 | R163: 541.26 | S163: 449.595 | T163: 563.085 | U163: 471.42
A164: 2024-01-15 | B164: Akai ind | C164: china | D164: EXHAUST FAN | E164: ak-ex-0001 | F164: EXHAUST FAN 30 | G164: شفاط 30سم شبكة | I164: 460 | J164: 446.2 | K164: 524.4 | L164: 501.4 | M164: 524.4 | N164: H6*1.07 | O164: 477.434 | P164: 553.288 | Q164: 468.51 | R164: 553.288 | S164: 459.586 | T164: 575.598 | U164: 481.896
A165: 2024-01-15 | B165: Akai ind | C165: china | D165: gas cooker | E165: ak-gc-0006 | F165: gas cooker 3 flame | G165: مسطح 3 عين استانلس | I165: 470 | J165: 455.9 | K165: 535.8 | L165: 512.3 | M165: 535.8 | N165: H6*1.07 | O165: 487.813 | P165: 565.316 | Q165: 478.695 | R165: 565.316 | S165: 469.577 | T165: 588.111 | U165: 492.372
A166: 2024-01-15 | B166: AKAI EXP | C166: china | D166: chopper | E166: ak-ch-0001 | F166: chopper 500 2 blade | G166: كويكي 2 سكينة 500 | I166: 480 | J166: 465.6 | K166: 547.2 | L166: 523.2 | M166: 547.2 | N166: H6*1.07 | O166: 498.192 | P166: 577.344 | Q166: 488.88 | R166: 577.344 | S166: 479.568 | T166: 600.624 | U166: 502.848
A167: 2024-01-15 | B167: AKAI EXP | C167: turky | D167: chopper | E167: ak-ch-0002 | G167: كبة 1 حوض 2 سكينة 100 | I167: 490 | J167: 475.3 | K167: 558.6 | L167: 534.1 | M167: 558.6 | N167: H6*1.07 | O167: 508.571 | P167: 589.372 | Q167: 499.065 | R167: 589.372 | S167: 489.559 | T167: 613.137 | U167: 513.324
A168: 2024-01-15 | B168: AKAI EXP | C168: turky | D168: chopper | E168: ak-ch-0003 | G168: كبة 2 حوض 2 سكينة 150 | I168: 500 | J168: 485 | K168: 570 | L168: 545 | M168: 570 | N168: H6*1.07 | O168: 518.95 | P168: 601.4 | Q168: 509.25 | R168: 601.4 | S168: 499.55 | T168: 625.65 | U168: 523.8
A169: 2024-01-15 | B169: Akai ind | C169: china | D169: Ceiling fan | E169: ak-cf-0001 | G169: مروحة سقف 56" بوصة | I169: 510 | J169: 494.7 | K169: 581.4 | L169: 555.9 | M169: 581.4 | N169: H6*1.07 | O169: 529.329 | P169: 613.428 | Q169: 519.435 | R169: 613.428 | S169: 509.541 | T169: 638.163 | U169: 534.276
A170: 2024-01-15 | B170: Akai ind | C170: china | D170: fans | E170: ak-fa-0001 | G170: مروحة حائط 18 بوصة عادة | I170: 520 | J170: 504.4 | K170: 592.8 | L170: 566.8 | M170: 592.8 | N170: H6*1.07 | O170: 539.708 | P170: 625.456 | Q170: 529.62 | R170: 625.456 | S170: 519.532 | T170: 650.676 | U170: 544.752
A171: 2024-01-15 | B171: Akai ind | C171: china | D171: fans | E171: ak-fa-0002 | G171: مروحة حائط 18 بوصة ريموت | I171: 530 | J171: 514.1 | K171: 604.2 | L171: 577.7 | M171: 604.2 | N171: H6*1.07 | O171: 550.087 | P171: 637.484 | Q171: 539.805 | R171: 637.484 | S171: 529.523 | T171: 663.189 | U171: 555.228
A172: 2024-01-15 | B172: Akai ind | C172: china | D172: fans | E172: ak-fa-0003 | G172: مروحة عمود 18 بوصة عادة | I172: 540 | J172: 523.8 | K172: 615.6 | L172: 588.6 | M172: 615.6 | N172: H6*1.07 | O172: 560.466 | P172: 649.512 | Q172: 549.99 | R172: 649.512 | S172: 539.514 | T172: 675.702 | U172: 565.704
A173: 2024-01-15 | B173: Akai ind | C173: china | D173: fans | E173: ak-fa-0004 | G173: مروحة عمود 18 بوصة ريموت | I173: 550 | J173: 533.5 | K173: 627 | L173: 599.5 | M173: 627 | N173: H6*1.07 | O173: 570.845 | P173: 661.54 | Q173: 560.175 | R173: 661.54 | S173: 549.505 | T173: 688.215 | U173: 576.18
A174: 2024-01-15 | B174: Akai ind | C174: china | D174: fans | E174: ak-fa-0005 | G174: مروحة حائط 20 بوصة عادة | I174: 560 | J174: 543.2 | K174: 638.4 | L174: 610.4 | M174: 638.4 | N174: H6*1.07 | O174: 581.224 | P174: 673.568 | Q174: 570.36 | R174: 673.568 | S174: 559.496 | T174: 700.728 | U174: 586.656
A175: 2024-01-15 | B175: Akai ind | C175: china | D175: fans | E175: ak-fa-0006 | G175: مروحة عمود 20 بوصة عادة | I175: 570 | J175: 552.9 | K175: 649.8 | L175: 621.3 | M175: 649.8 | N175: H6*1.07 | O175: 591.603 | P175: 685.596 | Q175: 580.545 | R175: 685.596 | S175: 569.487 | T175: 713.241 | U175: 597.132
A176: 2024-01-15 | B176: Akai ind | C176: china | D176: fans | E176: ak-fa-0007 | G176: مروحة حائط 18 عادة موزة | I176: 580 | J176: 562.6 | K176: 661.2 | L176: 632.2 | M176: 661.2 | N176: H6*1.07 | O176: 601.982 | P176: 697.624 | Q176: 590.73 | R176: 697.624 | S176: 579.478 | T176: 725.754 | U176: 607.608
A177: 2024-01-15 | B177: Akai ind | C177: china | D177: fans | E177: ak-fa-0008 | G177: مروحة عمود 18 عادة موزة | I177: 590 | J177: 572.3 | K177: 672.6 | L177: 643.1 | M177: 672.6 | N177: H6*1.07 | O177: 612.361 | P177: 709.652 | Q177: 600.915 | R177: 709.652 | S177: 589.469 | T177: 738.267 | U177: 618.084
A178: 2024-01-15 | B178: Akai ind | C178: china | D178: fans | E178: ak-fa-0009 | G178: مروحة كاريوكا 18 بوصة | I178: 600 | J178: 582 | K178: 684 | L178: 654 | M178: 684 | N178: H6*1.07 | O178: 622.74 | P178: 721.68 | Q178: 611.1 | R178: 721.68 | S178: 599.46 | T178: 750.78 | U178: 628.56
A179: 2024-01-15 | B179: B.ONE | C179: china | D179: killer | E179: ak-kl-0001 | G179: صاعق ناموس بلاستيك 60 سم | I179: 610 | J179: 591.7 | K179: 695.4 | L179: 664.9 | M179: 695.4 | N179: H6*1.07 | O179: 633.119 | P179: 733.708 | Q179: 621.285 | R179: 733.708 | S179: 609.451 | T179: 763.293 | U179: 639.036
A180: 2024-01-15 | B180: AKAI EXP | C180: egypt | D180: colman | E180: ak-cl-0001 | G180: كولمن 20 لتر | I180: 620 | J180: 601.4 | K180: 706.8 | L180: 675.8 | M180: 706.8 | N180: H6*1.07 | O180: 643.498 | P180: 745.736 | Q180: 631.47 | R180: 745.736 | S180: 619.442 | T180: 775.806 | U180: 649.512
A181: 2024-01-15 | B181: AKAI EXP | C181: china | D181: air cooler | E181: ak-ac-0001 | G181: تكييف صحراوي 75 لتر | I181: 630 | J181: 611.1 | K181: 718.2 | L181: 686.7 | M181: 718.2 | N181: H6*1.07 | O181: 653.877 | P181: 757.764 | Q181: 641.655 | R181: 757.764 | S181: 629.433 | T181: 788.319 | U181: 659.988
